Workbook

Sheet IKE-Laskentamenetelmä
A3: IKE-hiilijalanjälkilaskuri elintarvikeprosesseille
A5: Tämän laskentamenetelmän tarkoituksena on tuottaa tietoa tuotteesta muodostuvasta hiilijalanjäljestä. Menetelmä on tehty osana (A78255) Ilmastokestävät elintarvikeprosessit -hanketta (1.12.2021-31.8.2023) ja menetelmän toteutuksesta on vastannut Seinäjoen Ammattikorkeakoulu Oy. Hanketta on rahoittanut Euroopan aluekehitysrahasto (EAKR) 80 % ja SeAMK 20 %. Hanke rahoitetaan REACT-EU-välineen määrärahoista osana Euroopan unionin COVID-19-pandemian johdosta toteuttamia toimia. Seinäjoen Ammattikorkeakoulu Oy ei vastaa tällä työkalulla saaduista tuloksista ja niiden käytöstä.
A19: Tuotteen yleiset tiedot:
A20: Tuotteen kokonaismassa pakkauksineen (kg):
A21: Tuotteen nimi:
A22: Tuotteen eränumero:
A23: Yrityksen nimi:
A24: Valmistuspaikkakunta:
A25: Laskentapäivämäärä:
A26: Maat, joissa tuotetta kulutetaan/myydään:
A27: Laskennan tekijä:
A29: Laskennan tavoitteet ja soveltamisala:
A30: Lyhyt kuvaus järjestelmän rajoista: | B30: IKE-Laskentamenetelmällä tuotteen hiilijalanjäljenlaskenta keskittyy tuotteen elinkaaren vaiheisiin raaka-aineiden tuotannosta valmiin tuotteen kuljetukseen, eli niin sanotusti "kehdosta-portille". Tuotteen elinkaaren vaiheista keskitytään raaka-aineisiin, pakkausmateriaaleihin, jätteisiin, energiankäyttöön ja logistiikkaan. Raaka-aineissa ja pakkausmateriaaleissa huomioidaan niiden valmistuksen aikaiset päästöt. Jätejakeiden päästöihin sisällytetään jätteiden keräys, kuljetus ja käsittely. Energian käytön päästöihin sisältyy tuotteen valmistukseen käytettyjen laitteiden ja pesuvesien lämmitykseen kuluvan energian päästöt. Logistiikassa on otettu huomioon raaka-aineiden, pakkausmateriaalien ja valmiiden tuotteiden kuljetukset sekä varastointiin käytettävän energian ja kylmäainekaasujen päästöt.
A44: Tietojen laatua koskevat merkitykselliset näkökohdat: | B44: Käytetyt lähtötiedot tulevat luotettavista ja varmennetuista lähteistä. Lähtötiedoissa pyritään käyttämään ensisijaisesti primaaridataa. Sekundaaridatan ja oletusten käytöstä ilmaistaan selkeästi raportoinnissa.
A49: Käytetyt rajaukset ja oletukset, syyt niiden käyttöön ja merkitys laskennan lopputuloksiin: | B49: Laskennan ulkopuolelle on rajattu… Laskennassa on oletettu, että…
A54: Kuvaus esiselvityksestä: | B54: Laskennassa käytettävät tiedot on kerätty… (mistä, milloin, miten, kuka…)
A59: Lisätiedot tuloksiin liittyen: | B59: Raaka-aineiden laskennassa on epävarmuutta, koska… Talousperusteiseen allokointiin päädyttiin, koska…
A65: IKE-hiilijalanjälkilaskurin suunnittelusta ovat vastanneet:
A66: Valtteri Manninen
A67: Reeta Haaraniemi
A68: Merja Mäkipelkola
A69: Joni Viitala

Sheet Työkalut
A3: Yksikkömuuntimet
B4: Muunnettava yksikkö: | C4: Muunnetaan yksikköön: | D4: Määrä: | E4: Tulos:
A5: Päästökertoimet: | B5: kg CO2-ekv / kg | C5: kg CO2-ekv / t | D5: 1 | E5: 1000
A6: Energia: | B6: Wh | C6: kWh | D6: 1 | E6: 0.001000000047
A7: Aika: | B7: Sekunti | C7: Minuutti | D7: 1 | E7: 0.01666666754
A10: Muunnin virtausmittarin perusteella kerättyyn dataan:
A11: Nimi | B11: Aika (h) | C11: 1/s | D11: I/min | E11: m3/h | F11: Määrä (l) | G11: Määrä (l) | H11: Määrä
A12: Esim. pesuvesi | B12: 1 | C12: 0 | D12: 0 | E12: 0 | F12: =C12*3600*B12 -> 0 | G12: =D12*60*B12 -> 0 | H12: =E12*1000*B12 -> 0

Sheet Raaka-aineet
A3: Raaka-aineet | B3: Määrä (kg) | C3: Osuus reseptistä (%) | D3: Päästökerroin (kg CO2-ekv. / kg) | E3: Päästöt (kg CO2-ekv.) | F3: Päästöt lopputuotteesta (%)
C4: =IFERROR(B4/Dataa!Kokonaismassa,0) -> 0 | E4: =IFERROR(B4*D4,0) -> 0 | F4: =IFERROR(E4/Yhteenveto!KaikkiPaastot,0) -> 0
A5: Yhteensä | B5: =SUM(B4:B4) -> 0 | C5: =SUM(C4:C4) -> 0 | E5: =SUM(E4:E4) -> 0 | F5: =SUM(F4:F4) -> 0

Sheet Pakkausmateriaalit
A3: Pakkausmateriaalit | B3: Määrä (kpl) | C3: Massa (kg/kpl) | D3: Montako tuotetta pakkaus sisältää? (kpl) | E3: Massa per tuote (kg) | F3: Päästökerroin (kg CO2-ekv. / kg) | G3: Päästöt (kg CO2-ekv.) | H3: Päästöt lopputuotteesta (%)
E4: =IFERROR(C4*B4/D4,0) -> 0 | G4: =IFERROR(E4*F4,0) -> 0 | H4: =IFERROR(G4/Yhteenveto!KaikkiPaastot,0) -> 0
A5: Yhteensä | E5: =SUM(E4:E4) -> 0 | G5: =SUM(G4:G4) -> 0 | H5: =SUM(H4:H4) -> 0

Sheet Jätteet ja sivuvirrat
A3: Syntyvän jätteen tai sivuvirran lajike | B3: Syntyvaihe | C3: Sivuvirta vai jäte? | D3: Määrä (kg) | E3: Päästökerroin (kg CO2-ekv. / kg) | F3: Päästöt (kg CO2-ekv.) | G3: Päästöt lopputuotteesta (%)
F4: =IFERROR(D4*E4,0) -> 0 | G4: =IFERROR(F4/Yhteenveto!KaikkiPaastot,0) -> 0
A5: Yhteensä | F5: =SUM(F4:F4) -> 0 | G5: =SUM(G4:G4) -> 0
A7: Pesuaine | B7: Määrä (kg) | C7: Kuinka monta tuotetta käsiteltiin? | D7: Päästökerroin (kg CO2-ekv. / kg) | E7: Päästöt (kg CO2-ekv.) | F7: Päästöt lopputuotteesta (%)
E8: =IFERROR(B8*D8/C8,0) -> 0 | F8: =IFERROR(E8/Yhteenveto!KaikkiPaastot,0) -> 0
A9: Yhteensä | E9: =SUM(E8:E8) -> 0 | F9: =SUM(F8:F8) -> 0

Sheet Energia
L1: 27
A3: Energianlähde | B3: %-osuus energiajakaumasta | C3: Päästökerroin (kg CO2-ekv. / MWh) | D3: Biogeenisten päästöjen osuus (%) | E3: Painotettu päästökerroin (fos) (kg CO2-ekv. / MWh) | F3: Painotettu päästökerroin (bio) (kg CO2-ekv. / MWh)
D4: 0 | E4: =IFERROR(C4*B4*(1-D4),0) -> 0 | F4: =IFERROR(C4*B4*D4,0) -> 0
A5: Päästökerroin annetulla energiajakaumalla: | B5: =SUM(B4:B4) -> 0 | E5: =SUM(E4:E4) -> 0 | F5: =SUM(F4:F4) -> 0
A7: Sähkölaitteet | B7: Laitteen teho (kW) | C7: Kulunut aika (min) | D7: Kuinka monta tuotetta käsiteltiin? (kpl) | E7: Kulutettu energia (kWh) | F7: Päästökerroin (kg CO2-ekv. / MWh) | G7: Päästöt (kg CO2-ekv.) | H7: Päästöt lopputuotteesta (%) | I7: Päästökerroin (bio) (kg CO2-ekv. / MWh) | J7: Päästöt (bio) (kg CO2-ekv.)
E8: =B8*(C8/60) -> 0 | F8: =$E$5 -> 0 | G8: =IFERROR(E8/1000*F8/D8,"") ->  | H8: =IFERROR(G8/Yhteenveto!KaikkiPaastot,0) -> 0 | I8: =IFERROR($F$5,0) -> 0 | J8: =IFERROR(E8/1000*I8,"") -> 0
A9: Yhteensä | E9: =IFERROR(SUM(E8:E8),0) -> 0 | G9: =IFERROR(SUM(G8:G8),0) -> 0 | H9: =IFERROR(SUM(H8:H8),0) -> 0 | J9: =IFERROR(SUM(J8:J8),0) -> 0
A11: Muut laitteet | B11: Polttoaine | C11: Kulunut aika (min) | D11: Polttoaineen kulutus (kg/h) | E11: Kuinka monta tuotetta käsiteltiin? (kpl) | F11: Kulunut polttoaine per tuote (l tai kg) | G11: Päästökerroin (kg CO2-ekv. / l tai kg) | H11: Päästöt (kg CO2-ekv.) | I11: Päästöt lopputuotteesta (%)
F12: =IFERROR(C12/60*D12/E12,0) -> 0 | G12: 1 | H12: =IFERROR(F12*G12,0) -> 0 | I12: =IFERROR(H12/Yhteenveto!KaikkiPaastot,0) -> 0
A13: Yhteensä | F13: =IFERROR(SUM(F12:F12),0) -> 0 | H13: =IFERROR(SUM(H12:H12),0) -> 0 | I13: =IFERROR(SUM(I12:I12),0) -> 0
A15: Kulutettu höyry (muu kuin sähkön tai lämmön tuotanto) | B15: Määrä (kg) | C15: Polttoaine, jolla höyry on tuotettu | D15: Kuinka monta tuotetta käsiteltiin? (kpl) | E15: Polttoaineen bio-osuus | F15: Päästökerroin (kg CO2-ekv. / MWh) | G15: Päästöt (kg CO2-ekv.) | H15: Päästöt lopputuotteesta (%) | I15: Päästöt (bio) (kg CO2-ekv.)
G16: =IFERROR((B16*(2500/(3600*1000))/0.8)*F16*(1-E16)/D16,0) -> 0 | H16: =IFERROR(G16/Yhteenveto!KaikkiPaastot,0) -> 0 | I16: =IFERROR((B16*(2500/(3600*1000))/0.8)*F16*E16/D16,0) -> 0
A17: Yhteensä | B17: =IFERROR(SUM(B16:B16),0) -> 0 | G17: =IFERROR(SUM(G16:G16),0) -> 0 | H17: =IFERROR(SUM(H16:H16),0) -> 0 | I17: =IFERROR(SUM(I16:I16),0) -> 0
A19: Pesuvesien lämmitykseen kuluva energiamäärä
A20: Kulutettu lämminvesi (m3) | B20: Veden alkulämpötila (°C) | C20: Veden loppulämpötila (°C) | D20: Kuinka monta tuotetta käsiteltiin? (kpl) | E20: Kulunut energia (kWh) | F20: Päästökerroin (kg CO2-ekv.) | G20: Päästöt (kg CO2-ekv.) | H20: Päästöt lopputuotteesta (%) | I20: Päästökerroin (bio) (kg CO2-ekv.) | J20: Päästöt (bio) (kg CO2-ekv.)
E21: =IFERROR((1000*4.2*A21*(C21-B21))/3600,0) -> 0 | F21: =$E$5 -> 0 | G21: =IFERROR(E21/D21/1000*PesuvesienPaastokerroin,0) -> 0 | H21: =IFERROR(PesuvesienLammitysPaastot/Yhteenveto!KaikkiPaastot,0) -> 0 | I21: =$F$5 -> 0 | J21: =IFERROR(E21/D21/1000*PesuvesienPaastokerroinbio,0) -> 0

Sheet Logistiikka
A3: Mikäli logistiikasta vastaava yritys on laskenut valmiin arvon:
A4: Osamatka 1: Raaka-aineiden kuljetus tehtaalle | C4: kg CO2-ekv.
A5: Osamatka 2: Pakkausmateriaalien kuljetus tehtaalle | C5: kg CO2-ekv.
A6: Osamatka 3: Tuotteen kuljetus keskusvarastolle / kauppaan | C6: kg CO2-ekv. | F6: uvakaapaus
A8: Ajoneuvon tyyppi | B8: Matkan tyyppi | C8: Matkan pituus (km) | D8: Kuljetettavan tuotteen massa (kg) | E8: Kuorman massa (t) | F8: Max kuorman massa (t) | G8: Kuormaus-% | H8: Polttoaineen kulutus (l/100 km) | I8: Polttoaine | J8: Päästökerroin (kg CO2-ekv. / kg) | K8: Päästöt (kg CO2-ekv.) | L8: Päästöt lopputuotteesta (%) | M8: Bio päästöjen osuus | N8: Biogeeniset päästöt
G9: =IFERROR(E9/F9,"") ->  | L9: =IFERROR(K9/Yhteenveto!KaikkiPaastot,0) -> 0 | M9: 0.113021789 | N9: =IFERROR(C9*J9*(D9*0.001/E9),0)*M9 -> 0
A10: Yhteensä | K10: =SUM(K9:K9) -> 0 | L10: =SUM(L9:L9) -> 0 | N10: =SUM(N9:N9) -> 0
A12: Varastotila | B12: Varastointivaihe | C12: Varaston tyyppi | D12: Tuotteen tilantarve (m3) | E12: Varaston pinta-ala (m2) | F12: Jäähdytysjärjestelmän tilavuus (m3) | G12: Varastointiaika (vrk) | H12: Varastointikapasiteetti (m3) | I12: Energia (kWh/m2 tai kWh/m3) | J12: Energiamuoto | K12: Kohdennettu energian kulutus (kWh) | L12: Päästökerroin (kg CO2e / kWh) | M12: Päästöt (kg CO2-ekv.) | N12: Päästöt lopputuotteesta (%) | O12: Biogeenisten päästöjen osuus | P12: Päästöt (bio) kg CO2-ekv
L13: 0.199224 | M13: =IFERROR(K13*L13*(1-O13),0) -> 0 | N13: =IFERROR(M13/Yhteenveto!KaikkiPaastot,0) -> 0 | O13: 0 | P13: =IFERROR(K13*L13*(O13),0) -> 0
A14: Yhteensä | M14: =SUM(M13:M13) -> 0 | N14: =SUM(N13:N13) -> 0 | O14: =SUM(O13:O13) -> 0 | P14: =SUM(P13:P13) -> 0
A16: Kylmäainekaasut | B16: Käyttökohde | C16: Tuotteen tilantarve (m3) | D16: Varastointiaika (vrk) | E16: Varaston pinta-ala (m2) | F16: Varastointikapasiteetti (m3) | G16: Aineen kulutus (kg) | H16: Päästökerroin (kg CO2-ekv. / kWh) | I16: Päästöt (kg CO2-ekv.) | J16: Päästöt lopputuotteesta (%)
G17: =IFERROR(0.29*E17*(D17/365)*(C17/F17)*0.1,0) -> 0 | I17: =G17*H17 -> 0 | J17: =IFERROR( I17/Yhteenveto!KaikkiPaastot,0) -> 0
A18: Yhteensä | I18: =SUM(I17:I17) -> 0 | J18: =SUM(J17:J17) -> 0

Sheet Yhteenveto
A3: Yhteenveto tuotteen hiilijalanjäljestä:
B4: Fossiiliset päästöt | D4: =IFERROR(KaikkiPaastot/(KaikkiPaastot+KaikkiPaastotBio),0) -> 0 | E4: Biogeeniset päästöt | G4: =IFERROR(KaikkiPaastotBio/(KaikkiPaastot+KaikkiPaastotBio),0) -> 0
B5: kg CO2 | C5: kg CO2 / kg tuotetta | D5: %-osuus | E5: kg CO2 | F5: kg CO2 / kg tuotetta | G5: %-osuus
A6: Raaka-aineet | B6: ='Raaka-aineet'!E5 -> 0 | C6: =IFERROR(B6/('IKE-Laskentamenetelmä'!TuoMassa),0) -> 0 | D6: =IFERROR((B6)/$B$11,0) -> 0 | E6: 0 | F6: =IFERROR(E6/(TuoMassa),0) -> 0 | G6: =IFERROR((E6)/$E$11,0) -> 0
A7: Pakkausmateriaalit | B7: =Pakkausmateriaalit!G5 -> 0 | C7: =IFERROR(B7/('IKE-Laskentamenetelmä'!TuoMassa),0) -> 0 | D7: =IFERROR((B7)/$B$11,0) -> 0 | E7: 0 | F7: =IFERROR(E7/(TuoMassa),0) -> 0 | G7: =IFERROR((E7)/$E$11,0) -> 0
A8: Jätteet | B8: ='Jätteet ja sivuvirrat'!F5+'Jätteet ja sivuvirrat'!E9 -> 0 | C8: =IFERROR(B8/('IKE-Laskentamenetelmä'!TuoMassa),0) -> 0 | D8: 0 | E8: 0 | F8: =IFERROR(E8/(TuoMassa),0) -> 0 | G8: 0
A9: Energia | B9: =Energia!G9+Energia!H13+Energia!PesuvesienLammitysPaastot+Energia!G17 -> 0 | C9: =IFERROR(B9/('IKE-Laskentamenetelmä'!TuoMassa),0) -> 0 | D9: 0 | E9: =Energia!J9+Energia!J21+Energia!I17 -> 0 | F9: =IFERROR(E9/(TuoMassa),0) -> 0 | G9: 0
A10: Logistiikka | B10: =Dataa!KuljPaastotYht+Logistiikka!VarastointiPaastotYhteensa+Logistiikka!KylmaAineetPaastotYhteensa -> 0 | C10: =IFERROR(B10/('IKE-Laskentamenetelmä'!TuoMassa),0) -> 0 | D10: 0 | E10: =KuljBioPaastYht+Logistiikka!P14 -> 0 | F10: =IFERROR(E10/(TuoMassa),0) -> 0 | G10: 0
A11: Kaikki päästöt yhteensä | B11: =IFERROR(SUM(B6:B10),0) -> 0 | C11: =IFERROR(SUM(C6:C10),0) -> 0 | D11: =IFERROR(SUM(D6:D10),0) -> 0 | E11: =IFERROR(SUM(E6:E10),0) -> 0 | F11: =IFERROR(SUM(F6:F10),0) -> 0 | G11: =SUM(G6:G10) -> 0
A12: Sivuvirroille kohdennetut päästöt | B12: 0 | C12: 0 | D12: =IFERROR(B12/B11,0) -> 0 | E12: 0 | F12: 0 | G12: =IFERROR(E12/E11,0) -> 0
A13: Tuotteen päästöt annetuilla määrillä: | B13: =IFERROR(B11-B12,0) -> 0 | C13: =IFERROR(C11-C12,0) -> 0 | D13: =IFERROR(B13/$B$11,0) -> 0 | E13: =IFERROR(E11-E12,0) -> 0 | F13: =IFERROR(F11-F12,0) -> 0 | G13: =IFERROR(E13/E11,0) -> 0
A15: Sivutuotteet: | B15: Syntypaikka: | C15: Massa (kg): | D15: Kohdennuskerroin: | E15: Kohdennetut fossiiliset päästöt (kg CO2-ekv.): | F15: Kohdennetut biogeeniset päästöt (kg CO2-ekv.):

Sheet Tasetarkastelu
B3: Massavirta (kg): | C3: =Dataa!D21 -> 0
E4: Raaka-aineet
E6: Massavirta (kg): | F6: =Dataa!Kokonaismassa-Dataa!D21 -> 0 | J6: Massahäviöt (mm. haihtuminen) (kg): | K6: =Dataa!Kokonaismassa+Dataa!PakkaustenMassa-Dataa!D21-Dataa!D22-'IKE-Laskentamenetelmä'!TuoMassa -> 0
B7: Jätteet ja sivuvirrat raaka-ainetuotannosta
H9: Jätteet ja sivuvirrat prosessoinnista
H11: Massavirta (kg): | I11: =Dataa!D22 -> 0
E12: Raaka-aineiden logistiikka
E15: Prosessointi | J15: Valmis tuote myyntiin
B17: Energiankulutus
E20: Pakkausmateriaalien logistiikka
J21: Tuotteen lopullinen massa (kg): | K21: ='IKE-Laskentamenetelmä'!TuoMassa -> 0
J23: Tuotteiden logistiikka
E24: Massavirta (kg): | F24: =Dataa!PakkaustenMassa -> 0
E26: Pakkausmateriaalit
J28: Tuotteen loppukäyttö

Sheet Päästökertoimet
A3: Lähteet: | B3: Sähköntuotanto | C3: Päästökerroin | D3: Yksikkö | E3: Päästökerroin | F3: Yksikkö | G3: Biogeenisten päästöjen osuus
A4: Vattenfall. (i.a.). Tuulivoima. https://www.vattenfall.fi/sahkosopimukset/tuotantomuodot/tuulivoima | B4: Tuulivoima | C4: =0.01*1000 -> 10 | D4: kg CO2-ekv./MWh | F4: t CO2-ekv./TJ | G4: 0
A5: Hakala, O. (2021). Aurinkopaneelin ja -paneelituotannon hiilijalanjälki: tutkimustyö Salo Tech Oy:lle [AMK-opinnäytetyö, Turun ammattikorkeakoulu]. Theseus. https://urn.fi/URN:NBN:fi:amk-2021121726766 | B5: Aurinkoenergia | C5: =0.0207*1000 -> 20.7 | D5: kg CO2-ekv./MWh | F5: t CO2-ekv./TJ | G5: 0
A6: Ngo, C. & Natowich, J. (2016). Our energy future: Resources, alternatives and the environment. John Wiley & Sons, Incorporated. | B6: Vesivoima | C6: =(AVERAGE(3.6,11.6))/100*1000 -> 76 | D6: kg CO2-ekv./MWh | F6: t CO2-ekv./TJ | G6: 0
A7: Schlömer S., T. Bruckner, L. Fulton, E. Hertwich, A. McKinnon, D. Perczyk, J. Roy, R. Schaeffer, R. Sims, P. Smith, and R. Wiser, 2014: Annex III: Technology-specific cost and performance parameters. In: Climate Change 2014: Mitigation of Climate Change. Contribution of Working Group III to the Fifth Assessment Report of the Intergovernmental Panel on Climate Change [Edenhofer, O., R. Pichs-Madruga, Y. Sokona, E. Farahani, S. Kadner, K. Seyboth, A. Adler, I. Baum, S. Brunner, P. Eickemeier, B. Kriemann, J. Savolainen, S. Schlömer, C. von Stechow, T. Zwickel and J.C. Minx (eds.)]. Cambridge University Press, Cambridge, United Kingdom and New York, NY, USA. https://www.ipcc.ch/site/assets/uploads/2018/02/ipcc_wg3_ar5_annex-iii.pdf | B7: Ydinenergia | C7: 12 | D7: kg CO2-ekv./MWh | F7: t CO2-ekv./TJ | G7: 0
A8: Tilastokeskus. (2022). Polttoaineluokitus 2022/ Bränsleklassificering 2022 / Fuel classification 2022. https://www.stat.fi/static/media/uploads/tup/khkinv/khkaasut_polttoaineluokitus_2022.xlsx | B8: Kivihiili | C8: =(E8*1000)/(277.777770996093) -> 335.1600082 | D8: kg CO2-ekv./MWh | E8: 93.1 | F8: t CO2-ekv./TJ | G8: 0
A9: Tilastokeskus. (2022). Polttoaineluokitus 2022/ Bränsleklassificering 2022 / Fuel classification 2022. https://www.stat.fi/static/media/uploads/tup/khkinv/khkaasut_polttoaineluokitus_2022.xlsx | B9: Öljy | C9: 260.7495716 | D9: kg CO2-ekv./MWh | E9: 72.43043478 | F9: t CO2-ekv./TJ | G9: 0.0197826087
A10: Tilastokeskus. (2022). Polttoaineluokitus 2022/ Bränsleklassificering 2022 / Fuel classification 2022. https://www.stat.fi/static/media/uploads/tup/khkinv/khkaasut_polttoaineluokitus_2022.xlsx | B10: Maakaasu | C10: 199.2240049 | D10: kg CO2-ekv./MWh | E10: 55.34 | F10: t CO2-ekv./TJ | G10: 0
A11: Tilastokeskus. (2022). Polttoaineluokitus 2022/ Bränsleklassificering 2022 / Fuel classification 2022. https://www.stat.fi/static/media/uploads/tup/khkinv/khkaasut_polttoaineluokitus_2022.xlsx | B11: Turve | C11: 377.8200092 | D11: kg CO2-ekv./MWh | E11: 104.95 | F11: t CO2-ekv./TJ | G11: 0
A12: Tilastokeskus. (2022). Polttoaineluokitus 2022/ Bränsleklassificering 2022 / Fuel classification 2022. https://www.stat.fi/static/media/uploads/tup/khkinv/khkaasut_polttoaineluokitus_2022.xlsx | B12: Puupolttoaineet | C12: 403.2000098 | D12: kg CO2-ekv./MWh | E12: 112 | F12: t CO2-ekv./TJ | G12: 1
A13: Tilastokeskus. (2022). Polttoaineluokitus 2022/ Bränsleklassificering 2022 / Fuel classification 2022. https://www.stat.fi/static/media/uploads/tup/khkinv/khkaasut_polttoaineluokitus_2022.xlsx | B13: Biokaasu | C13: 196.5600048 | D13: kg CO2-ekv./MWh | E13: 54.6 | F13: t CO2-ekv./TJ | G13: 1
A14: Tilastokeskus. (2022). Polttoaineluokitus 2022/ Bränsleklassificering 2022 / Fuel classification 2022. https://www.stat.fi/static/media/uploads/tup/khkinv/khkaasut_polttoaineluokitus_2022.xlsx | B14: Kevyt polttoöljy, rikitön | C14: =(E14*1000)/(277.777770996093) -> 252.7200062 | D14: kg CO2-ekv./MWh | E14: 70.2 | F14: t CO2-ekv./TJ | G14: 0.04
A15: Tilastokeskus. (2022). Polttoaineluokitus 2022/ Bränsleklassificering 2022 / Fuel classification 2022. https://www.stat.fi/static/media/uploads/tup/khkinv/khkaasut_polttoaineluokitus_2022.xlsx | B15: Kevyt polttoöljy, vähärikkinen | C15: 252.7200062 | D15: kg CO2-ekv./MWh | E15: 70.2 | F15: t CO2-ekv./TJ | G15: 0.04
A16: Tilastokeskus. (2022). Polttoaineluokitus 2022/ Bränsleklassificering 2022 / Fuel classification 2022. https://www.stat.fi/static/media/uploads/tup/khkinv/khkaasut_polttoaineluokitus_2022.xlsx | B16: Raskas polttoöljy | C16: =(E16*1000)/(277.777770996093) -> 279.6300068 | D16: kg CO2-ekv./MWh | E16: 77.675 | F16: t CO2-ekv./TJ | G16: 0
A17: Tilastokeskus. (2022). Polttoaineluokitus 2022/ Bränsleklassificering 2022 / Fuel classification 2022. https://www.stat.fi/static/media/uploads/tup/khkinv/khkaasut_polttoaineluokitus_2022.xlsx | B17: Turvepelletit ja -briketit | C17: 349.2000085 | D17: kg CO2-ekv./MWh | E17: 97 | F17: t CO2-ekv./TJ | G17: 0
A18: Tilastokeskus. (2022). Polttoaineluokitus 2022/ Bränsleklassificering 2022 / Fuel classification 2022. https://www.stat.fi/static/media/uploads/tup/khkinv/khkaasut_polttoaineluokitus_2022.xlsx | B18: Puupelletit ja -briketit | C18: 403.2000098 | D18: kg CO2-ekv./MWh | E18: 112 | F18: t CO2-ekv./TJ | G18: 1
A19: Tilastokeskus. (2022). Polttoaineluokitus 2022/ Bränsleklassificering 2022 / Fuel classification 2022. https://www.stat.fi/static/media/uploads/tup/khkinv/khkaasut_polttoaineluokitus_2022.xlsx | B19: Biopelletit (ei puuperäiset) | C19: 403.2000098 | D19: kg CO2-ekv./MWh | E19: 112 | F19: t CO2-ekv./TJ | G19: 1
A20: Motiva. (2023). Energiankäyttö Suomessa - CO2-Päästökertoimet. https://www.motiva.fi/ratkaisut/energiankaytto_suomessa/co2-paastokertoimet | B20: Suomen keskiarvo | C20: 77 | D20: kg CO2-ekv./MWh | F20: t CO2-ekv./TJ | G20: 0
A22: Lähteet: | B22: Polttoaineet | C22: Päästökerroin | D22: Yksikkö | E22: Päästökerroin | F22: Yksikkö
A23: Suomen Standardisoimisliitto (SFS). (2012). Kuljetuspalvelujen energiankulutuksen ja kasvihuonekaasupäästöjen laskenta- ja ilmoitusmenetelmät (tavara- ja henkilökuljetukset); Methodology for calculation and declaration of energy consumption and GHG emissions of transport services (freight and passengers) (SFS-EN 16258 2013-02-11). | B23: Diesel | C23: 3.24 | D23: kgCO2-ekv./l | E23: 3.9 | F23: kgCO2-ekv./kg
A24: Suomen Standardisoimisliitto (SFS). (2012). Kuljetuspalvelujen energiankulutuksen ja kasvihuonekaasupäästöjen laskenta- ja ilmoitusmenetelmät (tavara- ja henkilökuljetukset); Methodology for calculation and declaration of energy consumption and GHG emissions of transport services (freight and passengers) (SFS-EN 16258 2013-02-11). | B24: Uusiutuva diesel | C24: 1.92 | D24: kgCO2-ekv./l | E24: 2.16 | F24: kgCO2-ekv./kg
A25: Suomen Standardisoimisliitto (SFS). (2012). Kuljetuspalvelujen energiankulutuksen ja kasvihuonekaasupäästöjen laskenta- ja ilmoitusmenetelmät (tavara- ja henkilökuljetukset); Methodology for calculation and declaration of energy consumption and GHG emissions of transport services (freight and passengers) (SFS-EN 16258 2013-02-11). | B25: E95 | C25: =(2.88*0.9)+(1.24*0.1) -> 2.716 | D25: kgCO2-ekv./l | E25: =(3.86*0.9)+(1.56*0.1) -> 3.63 | F25: kgCO2-ekv./kg
A26: Suomen Standardisoimisliitto (SFS). (2012). Kuljetuspalvelujen energiankulutuksen ja kasvihuonekaasupäästöjen laskenta- ja ilmoitusmenetelmät (tavara- ja henkilökuljetukset); Methodology for calculation and declaration of energy consumption and GHG emissions of transport services (freight and passengers) (SFS-EN 16258 2013-02-11). | B26: E98 | C26: 2.8 | D26: kgCO2-ekv./l | E26: 3.74 | F26: kgCO2-ekv./kg
A27: Suomen Standardisoimisliitto (SFS). (2012). Kuljetuspalvelujen energiankulutuksen ja kasvihuonekaasupäästöjen laskenta- ja ilmoitusmenetelmät (tavara- ja henkilökuljetukset); Methodology for calculation and declaration of energy consumption and GHG emissions of transport services (freight and passengers) (SFS-EN 16258 2013-02-11). | B27: E85 | C27: =(2.88*0.15)+(1.24*0.85) -> 1.486 | D27: kgCO2-ekv./l | E27: =(3.86*0.15)+(1.56*0.85) -> 1.905 | F27: kgCO2-ekv./kg
A28: Suomen ilmastopaneeli & Suomen ympäristökeskus SYKE. (2022). Autokalkulaattori: Ilmastovaikutusten ja kustannusten arviointiin. https://www.ilmastopaneeli.fi/autokalkulaattori/ | B28: Biokaasu | C28: 0.95 | D28: kgCO2-ekv./kg
A29: Suomen Standardisoimisliitto (SFS). (2012). Kuljetuspalvelujen energiankulutuksen ja kasvihuonekaasupäästöjen laskenta- ja ilmoitusmenetelmät (tavara- ja henkilökuljetukset); Methodology for calculation and declaration of energy consumption and GHG emissions of transport services (freight and passengers) (SFS-EN 16258 2013-02-11). | B29: Maakaasu (CNG) | C29: 3.07 | D29: kgCO2-ekv./kg
A30: Ministry for an ecological and solidary Transition. (2019). GHG information for transport services: Application of Article L. 1431-3 of the French transport code. https://www.ecologie.gouv.fr/sites/default/files/Information_GES%20-%202019.pdf | B30: Maakaasu (LNG) | C30: =3.51 -> 3.51 | D30: kgCO2-ekv./kg
A31: Suomen Standardisoimisliitto (SFS). (2012). Kuljetuspalvelujen energiankulutuksen ja kasvihuonekaasupäästöjen laskenta- ja ilmoitusmenetelmät (tavara- ja henkilökuljetukset); Methodology for calculation and declaration of energy consumption and GHG emissions of transport services (freight and passengers) (SFS-EN 16258 2013-02-11). | B31: Nestekaasu (LPG) | C31: 3.46 | D31: kgCO2-ekv./kg
A32: Suomen Standardisoimisliitto (SFS). (2012). Kuljetuspalvelujen energiankulutuksen ja kasvihuonekaasupäästöjen laskenta- ja ilmoitusmenetelmät (tavara- ja henkilökuljetukset); Methodology for calculation and declaration of energy consumption and GHG emissions of transport services (freight and passengers) (SFS-EN 16258 2013-02-11). | B32: Kerosiini | C32: 3.1 | D32: kgCO2-ekv./l | E32: 3.88 | F32: kgCO2-ekv./kg
A33: Suomen Standardisoimisliitto (SFS). (2012). Kuljetuspalvelujen energiankulutuksen ja kasvihuonekaasupäästöjen laskenta- ja ilmoitusmenetelmät (tavara- ja henkilökuljetukset); Methodology for calculation and declaration of energy consumption and GHG emissions of transport services (freight and passengers) (SFS-EN 16258 2013-02-11). | B33: Raskas polttoöljy | C33: 3.31 | D33: kgCO2-ekv./l | E33: 3.41 | F33: kgCO2-ekv./kg
A34: Suomen Standardisoimisliitto (SFS). (2012). Kuljetuspalvelujen energiankulutuksen ja kasvihuonekaasupäästöjen laskenta- ja ilmoitusmenetelmät (tavara- ja henkilökuljetukset); Methodology for calculation and declaration of energy consumption and GHG emissions of transport services (freight and passengers) (SFS-EN 16258 2013-02-11). | B34: Dieselöljy (meriliikenne) | C34: 3.53 | D34: kgCO2-ekv./l | E34: 3.92 | F34: kgCO2-ekv./kg
A35: Suomen Standardisoimisliitto (SFS). (2012). Kuljetuspalvelujen energiankulutuksen ja kasvihuonekaasupäästöjen laskenta- ja ilmoitusmenetelmät (tavara- ja henkilökuljetukset); Methodology for calculation and declaration of energy consumption and GHG emissions of transport services (freight and passengers) (SFS-EN 16258 2013-02-11). | B35: Kaasuöljy (meriliikenne) | C35: 3.49 | D35: kgCO2-ekv./l | E35: 3.92 | F35: kgCO2-ekv./kg
A36: Ministry for an ecological and solidary Transition. (2019). GHG information for transport services: Application of Article L. 1431-3 of the French transport code. https://www.ecologie.gouv.fr/sites/default/files/Information_GES%20-%202019.pdf | B36: Sähkö | C36: 0.42 | D36: kgCO2-ekv./kWh
A38: Lähteet: | B38: Ajoneuvot | C38: Päästökerroin (kg CO2e / tkm) | D38: Tyhjä t | E38: Täysi t | F38: Max.kuorma | G38: Biogeenisten päästöjen osuus
A39: Teknologian tutkimuskeskus VTT Oy. (6.7.2017). LIPASTO yksikköpäästöt -tietokanta: padiesjakelu. http://lipasto.vtt.fi/yksikkopaastot/yksikkopaastot.zip | B39: Pakettiauto (2,7 t/1,2 t) | C39: 0.1553333333 | D39: 0.218 | E39: 0.258 | F39: 1.2 | G39: =(0.216/D39)*0.115 -> 0.1139449541
A40: Teknologian tutkimuskeskus VTT Oy. (6.7.2017). LIPASTO yksikköpäästöt -tietokanta: kajakpienijakelu. http://lipasto.vtt.fi/yksikkopaastot/yksikkopaastot.zip | B40: Jakelukuorma-auto (6 t/3,5 t) | C40: 0.08508571429 | D40: 0.287 | E40: 0.364 | F40: 3.5 | G40: =(0.28/D40)*0.115 -> 0.112195122
A41: Teknologian tutkimuskeskus VTT Oy. (6.7.2017). LIPASTO yksikköpäästöt -tietokanta: kajaksuurijakelu. http://lipasto.vtt.fi/yksikkopaastot/yksikkopaastot.zip | B41: Jakelukuorma-auto (15 t/9 t) | C41: 0.05522222222 | D41: 0.436 | E41: 0.606 | F41: 9 | G41: =(0.428/D41)*0.115 -> 0.1128899083
A42: Teknologian tutkimuskeskus VTT Oy. (6.7.2017). LIPASTO yksikköpäästöt -tietokanta: kapptie. http://lipasto.vtt.fi/yksikkopaastot/yksikkopaastot.zip | B42: Puoliperävaunuyhdistelmä (40 t/25 t) | C42: 0.03848 | D42: 0.63 | E42: 0.962 | F42: 25 | G42: =(0.621/D42)*0.115 -> 0.1133571429
A43: Teknologian tutkimuskeskus VTT Oy. (6.7.2017). LIPASTO yksikköpäästöt -tietokanta: kavp60tie. http://lipasto.vtt.fi/yksikkopaastot/yksikkopaastot.zip | B43: Perävaunullinen yhdistelmä (60 t /40 t) | C43: 0.030125 | D43: 0.796 | E43: 1.205 | F43: 40 | G43: =(0.788/D43)*0.115 -> 0.1138442211
A44: Teknologian tutkimuskeskus VTT Oy. (6.7.2017). LIPASTO yksikköpäästöt -tietokanta: kavp76tie. http://lipasto.vtt.fi/yksikkopaastot/yksikkopaastot.zip | B44: Perävaunullinen yhdistelmä (76 t /51 t) | D44: 0.872 | E44: 1.432 | F44: 51 | G44: =(0.857/D44)*0.115 -> 0.113021789
A45: Teknologian tutkimuskeskus VTT Oy. (6.7.2017). LIPASTO yksikköpäästöt -tietokanta: kontti. http://lipasto.vtt.fi/yksikkopaastot/yksikkopaastot.zip | B45: Konttialus, 1 000 TEU | C45: =41.8127890472605/1000 -> 0.04181278905 | G45: 0
A46: Teknologian tutkimuskeskus VTT Oy. (6.7.2017). LIPASTO yksikköpäästöt -tietokanta: kontti. http://lipasto.vtt.fi/yksikkopaastot/yksikkopaastot.zip | B46: Konttialus, 2 000 TEU | C46: =28.0867954486092/1000 -> 0.02808679545 | G46: 0
A47: Teknologian tutkimuskeskus VTT Oy. (6.7.2017). LIPASTO yksikköpäästöt -tietokanta: kaikki_rahti. http://lipasto.vtt.fi/yksikkopaastot/yksikkopaastot.zip | B47: Autolautta | C47: =81.9850211823215/1000 -> 0.08198502118 | G47: 0
A48: Teknologian tutkimuskeskus VTT Oy. (6.7.2017). LIPASTO yksikköpäästöt -tietokanta: sekatavarasahko. http://lipasto.vtt.fi/yksikkopaastot/yksikkopaastot.zip | B48: Sekatavarajuna, sähkö | C48: 0 | G48: 0
A49: Teknologian tutkimuskeskus VTT Oy. (6.7.2017). LIPASTO yksikköpäästöt -tietokanta: sekatavaradiesel. http://lipasto.vtt.fi/yksikkopaastot/yksikkopaastot.zip | B49: Sekatavarajuna, diesel | C49: =25.5/1000 -> 0.0255 | G49: 0
A50: Department for Business, Energy & Industrial Strategy. (2022). UK Government GHG Conversion Factors for Company Reporting. https://assets.publishing.service.gov.uk/government/uploads/system/uploads/attachment_data/file/1083855/ghg-conversion-factors-2022-full-set.xls | B50: Kotimaanlennot <1000 km | C50: 4.49363 | G50: 0
A51: Department for Business, Energy & Industrial Strategy. (2022). UK Government GHG Conversion Factors for Company Reporting. https://assets.publishing.service.gov.uk/government/uploads/system/uploads/attachment_data/file/1083855/ghg-conversion-factors-2022-full-set.xls | B51: Lyhyet ulkomaanlennot 1000 4000 km | C51: 2.30229 | G51: 0
A52: Department for Business, Energy & Industrial Strategy. (2022). UK Government GHG Conversion Factors for Company Reporting. https://assets.publishing.service.gov.uk/government/uploads/system/uploads/attachment_data/file/1083855/ghg-conversion-factors-2022-full-set.xls | B52: Kaukolennot 4 000 7 000 km | C52: 1.0189 | G52: 0
A53: Department for Business, Energy & Industrial Strategy. (2022). UK Government GHG Conversion Factors for Company Reporting. https://assets.publishing.service.gov.uk/government/uploads/system/uploads/attachment_data/file/1083855/ghg-conversion-factors-2022-full-set.xls | B53: Kaukolennot >7 000 km | C53: 1.0189 | G53: 0
A54: Teknologian tutkimuskeskus VTT Oy. (6.7.2017). LIPASTO yksikköpäästöt -tietokanta: padiesjakelu. http://lipasto.vtt.fi/yksikkopaastot/yksikkopaastot.zip | B54: Henkilöauto - Bensiini | C54: 0.159 | G54: =0.048 -> 0.048
A55: Teknologian tutkimuskeskus VTT Oy. (6.7.2017). LIPASTO yksikköpäästöt -tietokanta: padiesjakelu. http://lipasto.vtt.fi/yksikkopaastot/yksikkopaastot.zip | B55: Henkilöauto - Diesel | C55: 0.141 | G55: =(139.387221732438/140.974060186586)*0.115 -> 0.1137055319
A56: Teknologian tutkimuskeskus VTT Oy. (6.7.2017). LIPASTO yksikköpäästöt -tietokanta: padiesjakelu. http://lipasto.vtt.fi/yksikkopaastot/yksikkopaastot.zip | B56: Henkilöauto - Sähkö | C56: =0.19*0.001*SuomenKaSähkönPK -> 0.01463 | G56: 0
A57: Teknologian tutkimuskeskus VTT Oy. (6.7.2017). LIPASTO yksikköpäästöt -tietokanta: padiesjakelu. http://lipasto.vtt.fi/yksikkopaastot/yksikkopaastot.zip | B57: Henkilöauto - Korkeaseosetanoli | C57: 0.03 | G57: 0.72
A58: Teknologian tutkimuskeskus VTT Oy. (6.7.2017). LIPASTO yksikköpäästöt -tietokanta: padiesjakelu. http://lipasto.vtt.fi/yksikkopaastot/yksikkopaastot.zip | B58: Henkilöauto - Kaasu (CNG) | C58: 0.0701 | G58: =(66.5716189172596/70.1196660460238)*0.4 -> 0.3797600455
A59: Teknologian tutkimuskeskus VTT Oy. (6.7.2017). LIPASTO yksikköpäästöt -tietokanta: padiesjakelu. http://lipasto.vtt.fi/yksikkopaastot/yksikkopaastot.zip | B59: Henkilöauto - Keskimääräinen Suomessa | C59: 0.152 | G59: =(1914808/2629432)*G54+(705843/2629432)*G55+(1820/2629432)*G58+(3581/2629432)*G57 -> 0.06672107172
B60: Työkoneet (mm. traktori)
B61: Muu
A63: Lähteet: | B63: Kylmäainekaasut | C63: kgCO2-ekv./kg
A64: EPA - United States Environmental Protection Agency. (2014) Direct Fugitive Emissions from Refrigeration, Air Conditioning, Fire Suppression, and Industrial Gases. (https://www.epa.gov/sites/default/files/2015-07/documents/fugitiveemissions.pdf) | B64: R-401A | C64: 16
A65: EPA - United States Environmental Protection Agency. (2014) Direct Fugitive Emissions from Refrigeration, Air Conditioning, Fire Suppression, and Industrial Gases. (https://www.epa.gov/sites/default/files/2015-07/documents/fugitiveemissions.pdf) | B65: R-401B | C65: 14
A66: EPA - United States Environmental Protection Agency. (2014) Direct Fugitive Emissions from Refrigeration, Air Conditioning, Fire Suppression, and Industrial Gases. (https://www.epa.gov/sites/default/files/2015-07/documents/fugitiveemissions.pdf) | B66: R-401C | C66: 19
A67: EPA - United States Environmental Protection Agency. (2014) Direct Fugitive Emissions from Refrigeration, Air Conditioning, Fire Suppression, and Industrial Gases. (https://www.epa.gov/sites/default/files/2015-07/documents/fugitiveemissions.pdf) | B67: R-402A | C67: 100
A68: EPA - United States Environmental Protection Agency. (2014) Direct Fugitive Emissions from Refrigeration, Air Conditioning, Fire Suppression, and Industrial Gases. (https://www.epa.gov/sites/default/files/2015-07/documents/fugitiveemissions.pdf) | B68: R-402B | C68: 330
A69: EPA - United States Environmental Protection Agency. (2014) Direct Fugitive Emissions from Refrigeration, Air Conditioning, Fire Suppression, and Industrial Gases. (https://www.epa.gov/sites/default/files/2015-07/documents/fugitiveemissions.pdf) | B69: R-403B | C69: 3.444
A70: EPA - United States Environmental Protection Agency. (2014) Direct Fugitive Emissions from Refrigeration, Air Conditioning, Fire Suppression, and Industrial Gases. (https://www.epa.gov/sites/default/files/2015-07/documents/fugitiveemissions.pdf) | B70: R-404A | C70: 3.922
A71: EPA - United States Environmental Protection Agency. (2014) Direct Fugitive Emissions from Refrigeration, Air Conditioning, Fire Suppression, and Industrial Gases. (https://www.epa.gov/sites/default/files/2015-07/documents/fugitiveemissions.pdf) | B71: R-406A | C71: 0
A72: EPA - United States Environmental Protection Agency. (2014) Direct Fugitive Emissions from Refrigeration, Air Conditioning, Fire Suppression, and Industrial Gases. (https://www.epa.gov/sites/default/files/2015-07/documents/fugitiveemissions.pdf) | B72: R-407A | C72: 2.107
A73: EPA - United States Environmental Protection Agency. (2014) Direct Fugitive Emissions from Refrigeration, Air Conditioning, Fire Suppression, and Industrial Gases. (https://www.epa.gov/sites/default/files/2015-07/documents/fugitiveemissions.pdf) | B73: R-407B | C73: 2.804
A74: EPA - United States Environmental Protection Agency. (2014) Direct Fugitive Emissions from Refrigeration, Air Conditioning, Fire Suppression, and Industrial Gases. (https://www.epa.gov/sites/default/files/2015-07/documents/fugitiveemissions.pdf) | B74: R-407C | C74: 1.774
A75: EPA - United States Environmental Protection Agency. (2014) Direct Fugitive Emissions from Refrigeration, Air Conditioning, Fire Suppression, and Industrial Gases. (https://www.epa.gov/sites/default/files/2015-07/documents/fugitiveemissions.pdf) | B75: R-407D | C75: 1.627
A76: EPA - United States Environmental Protection Agency. (2014) Direct Fugitive Emissions from Refrigeration, Air Conditioning, Fire Suppression, and Industrial Gases. (https://www.epa.gov/sites/default/files/2015-07/documents/fugitiveemissions.pdf) | B76: R-407E | C76: 1.552
A77: EPA - United States Environmental Protection Agency. (2014) Direct Fugitive Emissions from Refrigeration, Air Conditioning, Fire Suppression, and Industrial Gases. (https://www.epa.gov/sites/default/files/2015-07/documents/fugitiveemissions.pdf) | B77: R-408A | C77: 2.301
A78: EPA - United States Environmental Protection Agency. (2014) Direct Fugitive Emissions from Refrigeration, Air Conditioning, Fire Suppression, and Industrial Gases. (https://www.epa.gov/sites/default/files/2015-07/documents/fugitiveemissions.pdf) | B78: R-409A | C78: 0
A79: EPA - United States Environmental Protection Agency. (2014) Direct Fugitive Emissions from Refrigeration, Air Conditioning, Fire Suppression, and Industrial Gases. (https://www.epa.gov/sites/default/files/2015-07/documents/fugitiveemissions.pdf) | B79: R-410A | C79: 2.088
A80: EPA - United States Environmental Protection Agency. (2014) Direct Fugitive Emissions from Refrigeration, Air Conditioning, Fire Suppression, and Industrial Gases. (https://www.epa.gov/sites/default/files/2015-07/documents/fugitiveemissions.pdf) | B80: R-410B | C80: 2.229
A81: EPA - United States Environmental Protection Agency. (2014) Direct Fugitive Emissions from Refrigeration, Air Conditioning, Fire Suppression, and Industrial Gases. (https://www.epa.gov/sites/default/files/2015-07/documents/fugitiveemissions.pdf) | B81: R-411A | C81: 14
A82: EPA - United States Environmental Protection Agency. (2014) Direct Fugitive Emissions from Refrigeration, Air Conditioning, Fire Suppression, and Industrial Gases. (https://www.epa.gov/sites/default/files/2015-07/documents/fugitiveemissions.pdf) | B82: R-411B | C82: 4
A83: EPA - United States Environmental Protection Agency. (2014) Direct Fugitive Emissions from Refrigeration, Air Conditioning, Fire Suppression, and Industrial Gases. (https://www.epa.gov/sites/default/files/2015-07/documents/fugitiveemissions.pdf) | B83: R-413A | C83: 2.053
A84: EPA - United States Environmental Protection Agency. (2014) Direct Fugitive Emissions from Refrigeration, Air Conditioning, Fire Suppression, and Industrial Gases. (https://www.epa.gov/sites/default/files/2015-07/documents/fugitiveemissions.pdf) | B84: R-414A | C84: 0
A85: EPA - United States Environmental Protection Agency. (2014) Direct Fugitive Emissions from Refrigeration, Air Conditioning, Fire Suppression, and Industrial Gases. (https://www.epa.gov/sites/default/files/2015-07/documents/fugitiveemissions.pdf) | B85: R-414B | C85: 0
A86: EPA - United States Environmental Protection Agency. (2014) Direct Fugitive Emissions from Refrigeration, Air Conditioning, Fire Suppression, and Industrial Gases. (https://www.epa.gov/sites/default/files/2015-07/documents/fugitiveemissions.pdf) | B86: R-417A | C86: 2.346
A87: EPA - United States Environmental Protection Agency. (2014) Direct Fugitive Emissions from Refrigeration, Air Conditioning, Fire Suppression, and Industrial Gases. (https://www.epa.gov/sites/default/files/2015-07/documents/fugitiveemissions.pdf) | B87: R-422A | C87: 3.143
A88: EPA - United States Environmental Protection Agency. (2014) Direct Fugitive Emissions from Refrigeration, Air Conditioning, Fire Suppression, and Industrial Gases. (https://www.epa.gov/sites/default/files/2015-07/documents/fugitiveemissions.pdf) | B88: R-422D | C88: 2.729
A89: EPA - United States Environmental Protection Agency. (2014) Direct Fugitive Emissions from Refrigeration, Air Conditioning, Fire Suppression, and Industrial Gases. (https://www.epa.gov/sites/default/files/2015-07/documents/fugitiveemissions.pdf) | B89: R-423A | C89: 2.28
A90: EPA - United States Environmental Protection Agency. (2014) Direct Fugitive Emissions from Refrigeration, Air Conditioning, Fire Suppression, and Industrial Gases. (https://www.epa.gov/sites/default/files/2015-07/documents/fugitiveemissions.pdf) | B90: R-424A | C90: 2.44
A91: EPA - United States Environmental Protection Agency. (2014) Direct Fugitive Emissions from Refrigeration, Air Conditioning, Fire Suppression, and Industrial Gases. (https://www.epa.gov/sites/default/files/2015-07/documents/fugitiveemissions.pdf) | B91: R-426A | C91: 1.508
A92: EPA - United States Environmental Protection Agency. (2014) Direct Fugitive Emissions from Refrigeration, Air Conditioning, Fire Suppression, and Industrial Gases. (https://www.epa.gov/sites/default/files/2015-07/documents/fugitiveemissions.pdf) | B92: R-428A | C92: 3.607
A93: EPA - United States Environmental Protection Agency. (2014) Direct Fugitive Emissions from Refrigeration, Air Conditioning, Fire Suppression, and Industrial Gases. (https://www.epa.gov/sites/default/files/2015-07/documents/fugitiveemissions.pdf) | B93: R-434A | C93: 3.245
A94: EPA - United States Environmental Protection Agency. (2014) Direct Fugitive Emissions from Refrigeration, Air Conditioning, Fire Suppression, and Industrial Gases. (https://www.epa.gov/sites/default/files/2015-07/documents/fugitiveemissions.pdf) | B94: R-500 | C94: 32
A95: EPA - United States Environmental Protection Agency. (2014) Direct Fugitive Emissions from Refrigeration, Air Conditioning, Fire Suppression, and Industrial Gases. (https://www.epa.gov/sites/default/files/2015-07/documents/fugitiveemissions.pdf) | B95: R-502 | C95: 0
A96: EPA - United States Environmental Protection Agency. (2014) Direct Fugitive Emissions from Refrigeration, Air Conditioning, Fire Suppression, and Industrial Gases. (https://www.epa.gov/sites/default/files/2015-07/documents/fugitiveemissions.pdf) | B96: R-504 | C96: 325
A97: EPA - United States Environmental Protection Agency. (2014) Direct Fugitive Emissions from Refrigeration, Air Conditioning, Fire Suppression, and Industrial Gases. (https://www.epa.gov/sites/default/files/2015-07/documents/fugitiveemissions.pdf) | B97: R-507 | C97: 3.985
A98: EPA - United States Environmental Protection Agency. (2014) Direct Fugitive Emissions from Refrigeration, Air Conditioning, Fire Suppression, and Industrial Gases. (https://www.epa.gov/sites/default/files/2015-07/documents/fugitiveemissions.pdf) | B98: R-508A | C98: 13.214
A99: EPA - United States Environmental Protection Agency. (2014) Direct Fugitive Emissions from Refrigeration, Air Conditioning, Fire Suppression, and Industrial Gases. (https://www.epa.gov/sites/default/files/2015-07/documents/fugitiveemissions.pdf) | B99: R-508B | C99: 13.396
A102: Lähteet: | B102: Pakkausmateriaalit | C102: kg CO2-ekv./kg
A103: Päällysaho, M., Leino, K. & Saario, M. (2018). Update of wine packaging LCA Final report Alko Oy: Gaia Consulting Oy. https://www.alko.fi/INTERSHOP/static/WFS/Alko-OnlineShop-Site/-/Alko-OnlineShop/fi_FI/Tavarantoimittajille/Muut/EN/Alko%20wine%20packaging%20LCA%20update_final%20report.pdf | B103: Viinipakkaus, nestekartonki, sis. Korkki | C103: 2.135
A104: Päällysaho, M., Leino, K. & Saario, M. (2018). Update of wine packaging LCA Final report Alko Oy: Gaia Consulting Oy. https://www.alko.fi/INTERSHOP/static/WFS/Alko-OnlineShop-Site/-/Alko-OnlineShop/fi_FI/Tavarantoimittajille/Muut/EN/Alko%20wine%20packaging%20LCA%20update_final%20report.pdf | B104: Viinipakkaus, lasipullo, sis. Korkki ja etiketti | C104: 0.938
A105: Päällysaho, M., Leino, K. & Saario, M. (2018). Update of wine packaging LCA Final report Alko Oy: Gaia Consulting Oy. https://www.alko.fi/INTERSHOP/static/WFS/Alko-OnlineShop-Site/-/Alko-OnlineShop/fi_FI/Tavarantoimittajille/Muut/EN/Alko%20wine%20packaging%20LCA%20update_final%20report.pdf | B105: Viinipakkaus, PET-pullo 0,75 l, sis. Korkki ja etiketti | C105: 3.347
A106: Päällysaho, M., Leino, K. & Saario, M. (2018). Update of wine packaging LCA Final report Alko Oy: Gaia Consulting Oy. https://www.alko.fi/INTERSHOP/static/WFS/Alko-OnlineShop-Site/-/Alko-OnlineShop/fi_FI/Tavarantoimittajille/Muut/EN/Alko%20wine%20packaging%20LCA%20update_final%20report.pdf | B106: Viinipakkaus, viinipussi, sis. Korkki | C106: 4.124
A107: Päällysaho, M., Leino, K. & Saario, M. (2018). Update of wine packaging LCA Final report Alko Oy: Gaia Consulting Oy. https://www.alko.fi/INTERSHOP/static/WFS/Alko-OnlineShop-Site/-/Alko-OnlineShop/fi_FI/Tavarantoimittajille/Muut/EN/Alko%20wine%20packaging%20LCA%20update_final%20report.pdf | B107: Viinipakkaus, hanapakkaus, sis. Korkki | C107: 1.161
A108: Department for Business, Energy & Industrial Strategy. (2022). UK Government GHG Conversion Factors for Company Reporting. https://assets.publishing.service.gov.uk/government/uploads/system/uploads/attachment_data/file/1083855/ghg-conversion-factors-2022-full-set.xls | B108: HDPE, | C108: 3.26984
A109: Department for Business, Energy & Industrial Strategy. (2022). UK Government GHG Conversion Factors for Company Reporting. https://assets.publishing.service.gov.uk/government/uploads/system/uploads/attachment_data/file/1083855/ghg-conversion-factors-2022-full-set.xls | B109: HDPE, kierrätetty | C109: 2.35062
A110: Department for Business, Energy & Industrial Strategy. (2022). UK Government GHG Conversion Factors for Company Reporting. https://assets.publishing.service.gov.uk/government/uploads/system/uploads/attachment_data/file/1083855/ghg-conversion-factors-2022-full-set.xls | B110: LDPE | C110: 2.60064
A111: Department for Business, Energy & Industrial Strategy. (2022). UK Government GHG Conversion Factors for Company Reporting. https://assets.publishing.service.gov.uk/government/uploads/system/uploads/attachment_data/file/1083855/ghg-conversion-factors-2022-full-set.xls | B111: LDPE, kierrätetty | C111: 1.79722
A112: Department for Business, Energy & Industrial Strategy. (2022). UK Government GHG Conversion Factors for Company Reporting. https://assets.publishing.service.gov.uk/government/uploads/system/uploads/attachment_data/file/1083855/ghg-conversion-factors-2022-full-set.xls | B112: PP | C112: 3.10473
A113: Department for Business, Energy & Industrial Strategy. (2022). UK Government GHG Conversion Factors for Company Reporting. https://assets.publishing.service.gov.uk/government/uploads/system/uploads/attachment_data/file/1083855/ghg-conversion-factors-2022-full-set.xls | B113: PP, kierrätetty | C113: 2.54131
A114: Department for Business, Energy & Industrial Strategy. (2022). UK Government GHG Conversion Factors for Company Reporting. https://assets.publishing.service.gov.uk/government/uploads/system/uploads/attachment_data/file/1083855/ghg-conversion-factors-2022-full-set.xls | B114: PVC | C114: 3.41308
A115: Department for Business, Energy & Industrial Strategy. (2022). UK Government GHG Conversion Factors for Company Reporting. https://assets.publishing.service.gov.uk/government/uploads/system/uploads/attachment_data/file/1083855/ghg-conversion-factors-2022-full-set.xls | B115: PVC, kierrätetty | C115: 2.48967
A116: Department for Business, Energy & Industrial Strategy. (2022). UK Government GHG Conversion Factors for Company Reporting. https://assets.publishing.service.gov.uk/government/uploads/system/uploads/attachment_data/file/1083855/ghg-conversion-factors-2022-full-set.xls | B116: PET | C116: 4.03239
A117: Department for Business, Energy & Industrial Strategy. (2022). UK Government GHG Conversion Factors for Company Reporting. https://assets.publishing.service.gov.uk/government/uploads/system/uploads/attachment_data/file/1083855/ghg-conversion-factors-2022-full-set.xls | B117: PET, kierrätetty | C117: 3.12527
A118: Department for Business, Energy & Industrial Strategy. (2022). UK Government GHG Conversion Factors for Company Reporting. https://assets.publishing.service.gov.uk/government/uploads/system/uploads/attachment_data/file/1083855/ghg-conversion-factors-2022-full-set.xls | B118: PS | C118: 3.77795
A119: Department for Business, Energy & Industrial Strategy. (2022). UK Government GHG Conversion Factors for Company Reporting. https://assets.publishing.service.gov.uk/government/uploads/system/uploads/attachment_data/file/1083855/ghg-conversion-factors-2022-full-set.xls | B119: PS, kierrätetty | C119: 3.19896
A120: Matikainen, E. (2022). Muovisola Oy:n hiilijalanjälki: Hiilijalanjälki organisaatiolla ja sen tuotteelle [AMK-opinnäytetyö, Karelia-ammattikorkeakoulu]. Theseus. https://urn.fi/URN:NBN:fi:amk-202204124981 | B120: LDPE (pakkauskalvo) | C120: 3.09
A121: Kaipainen, I. (2020). Carbon footprint of bio-based polypropylene via hydrotreatment and steam cracking [Pro gradu, LAB-yliopisto]. LUTPub. https://urn.fi/URN:NBN:fi-fe2020120799708 | B121: PP, biopohjainen | C121: 0.8
A122: The international EPD system. (2022). Rigid thermoformed PET punnet. https://api.environdec.com/api/v1/EPDLibrary/Files/d6582e92-6ab7-4324-2330-08daedae32be/Data | B122: PET rasia | C122: 3.933333333
A123: The International EPD System. (2020). APS Trays - Air Passage system. https://api.environdec.com/api/v1/EPDLibrary/Files/0ef93bbb-6d75-47b9-564c-08d9a98a0c6e/Data | B123: PP, muovialusta | C123: 3.216718
A124: The international EPD system. (2020). Punnets for berries. https://api.environdec.com/api/v1/EPDLibrary/Files/6fb863bd-e908-431d-26c6-08d98899db1f/Data | B124: R-PET, marjarasia | C124: 2.417857143
A125: Department for Business, Energy & Industrial Strategy. (2022). UK Government GHG Conversion Factors for Company Reporting. https://assets.publishing.service.gov.uk/government/uploads/system/uploads/attachment_data/file/1083855/ghg-conversion-factors-2022-full-set.xls | B125: Paperi | C125: =919.39628/1000 -> 0.91939628
A126: Pro Carton. (2021). Comparing the carbon footprínt of carton packaging against alternative solution. https://www.procarton.com/wp-content/uploads/2021/06/ProCarton_Carbon-Footprint-Report_Proof-9.pdf | B126: Pahvi | C126: 5.862
A127: Matikainen, E. (2022). Muovisola Oy:n hiilijalanjälki: Hiilijalanjälki organisaatiolla ja sen tuotteelle [AMK-opinnäytetyö, Karelia-ammattikorkeakoulu]. Theseus. https://urn.fi/URN:NBN:fi:amk-202204124981 | B127: Pahvi (pakkaus) | C127: 0.725
A128: Department for Business, Enegy & Industrial Strategy. (2022). UK Government GHG Conversion Factors for Company Reporting. https://assets.publishing.service.gov.uk/government/uploads/system/uploads/attachment_data/file/1083855/ghg-conversion-factors-2022-full-set.xls | B128: Pahvi (neitseelisistä raaka-aineista) | C128: 0.8289
A129: Department for Business, Enegy & Industrial Strategy. (2022). UK Government GHG Conversion Factors for Company Reporting. https://assets.publishing.service.gov.uk/government/uploads/system/uploads/attachment_data/file/1083855/ghg-conversion-factors-2022-full-set.xls | B129: Pahvi, kierrätetty | C129: 0.71956
A130: Department for Business, Enegy & Industrial Strategy. (2022). UK Government GHG Conversion Factors for Company Reporting. https://assets.publishing.service.gov.uk/government/uploads/system/uploads/attachment_data/file/1083855/ghg-conversion-factors-2022-full-set.xls | B130: Paperi | C130: 0.9194
A131: Department for Business, Enegy & Industrial Strategy. (2022). UK Government GHG Conversion Factors for Company Reporting. https://assets.publishing.service.gov.uk/government/uploads/system/uploads/attachment_data/file/1083855/ghg-conversion-factors-2022-full-set.xls | B131: Paperi, kierrätetty | C131: 0.7394
A132: Department for Business, Enegy & Industrial Strategy. (2022). UK Government GHG Conversion Factors for Company Reporting. https://assets.publishing.service.gov.uk/government/uploads/system/uploads/attachment_data/file/1083855/ghg-conversion-factors-2022-full-set.xls | B132: Pahvi-paperiseos | C132: 0.88416
A133: Department for Business, Enegy & Industrial Strategy. (2022). UK Government GHG Conversion Factors for Company Reporting. https://assets.publishing.service.gov.uk/government/uploads/system/uploads/attachment_data/file/1083855/ghg-conversion-factors-2022-full-set.xls | B133: Pahvi-paperiseos, kierrätetty | C133: 0.73167
A134: Metsä Group. (i.a.). Tuotteet ja palvelut. https://www.metsagroup.com/fi/metsaboard/tuotteet-ja-palvelut/ | B134: Kartonkipakkaus, Metsä Group, Pro FBB Bright 180-350 g/m2 | C134: 1.417
A135: Metsä Group. (i.a.). Tuotteet ja palvelut. https://www.metsagroup.com/fi/metsaboard/tuotteet-ja-palvelut/ | B135: Kartonkipakkaus, Metsä Group, Prime FBB Bright | C135: 1.342
A136: Metsä Group. (i.a.). Tuotteet ja palvelut. https://www.metsagroup.com/fi/metsaboard/tuotteet-ja-palvelut/ | B136: Kartonkipakkaus, Metsä Group, Natural FBB 175-325 g/m2 | C136: 1.561
A137: Metsä Group. (i.a.). Tuotteet ja palvelut. https://www.metsagroup.com/fi/metsaboard/tuotteet-ja-palvelut/ | B137: Kartonkipakkaus, Metsä Group, Classic FBB 200-340 g/m2 | C137: 1.419
A138: Metsä Group. (i.a.). Tuotteet ja palvelut. https://www.metsagroup.com/fi/metsaboard/tuotteet-ja-palvelut/ | B138: Kartonkipakkaus, Metsä Group, Pro FBB OBAfree 195-345 g/m2 | C138: 1.431
A139: Metsä Group. (i.a.). Tuotteet ja palvelut. https://www.metsagroup.com/fi/metsaboard/tuotteet-ja-palvelut/ | B139: Kartonkipakkaus, Metsä Group, Prime FBB EB 195320 g/m2 | C139: 1.379
A140: Metsä Group. (i.a.). Tuotteet ja palvelut. https://www.metsagroup.com/fi/metsaboard/tuotteet-ja-palvelut/ | B140: Kartonkipakkaus, Metsä Group, Natural FSB Cup 185-310 g/m2 | C140: 1.577
A141: Metsä Group. (i.a.). Tuotteet ja palvelut. https://www.metsagroup.com/fi/metsaboard/tuotteet-ja-palvelut/ | B141: Kartonkipakkaus, Metsä Group, Pro FSB Cup 205-330 g/m2 | C141: 1.453
A142: Metsä Group. (i.a.). Tuotteet ja palvelut. https://www.metsagroup.com/fi/metsaboard/tuotteet-ja-palvelut/ | B142: Kartonkipakkaus, Metsä Group, Natural WKL Bright 70-160 g/m2 | C142: 1.458
A143: Metsä Group. (i.a.). Tuotteet ja palvelut. https://www.metsagroup.com/fi/metsaboard/tuotteet-ja-palvelut/ | B143: Kartonkipakkaus, Metsä Group, Classic WKL 135-175 g/m2 | C143: 1.458
A144: Metsä Group. (i.a.). Tuotteet ja palvelut. https://www.metsagroup.com/fi/metsaboard/tuotteet-ja-palvelut/ | B144: Kartonkipakkaus, Metsä Group, Pro WKL 130-200 g/m2 | C144: 1.43
A145: Metsä Group. (i.a.). Tuotteet ja palvelut. https://www.metsagroup.com/fi/metsaboard/tuotteet-ja-palvelut/ | B145: Kartonkipakkaus, Metsä Group, Prime WKL 125-250 g/m2 | C145: 1.375
B146: Kartonkipakkaus, Metsä Group, Keskiarvo: | C146: 1.441666667
A147: Tetra Pak. (i.a.). Carton CO2 calculator. https://www.tetrapak.com/sustainability/planet/environmental-impact/a-value-chain-approach/carton-co2e-footprint# | B147: Tetra Brik Aseptic Edge with plant-based plastic film & LightCap 30 | C147: 1.5
A148: Tetra Pak. (i.a.). Carton CO2 calculator. https://www.tetrapak.com/sustainability/planet/environmental-impact/a-value-chain-approach/carton-co2e-footprint# | B148: Tetra Rex Plant based TwistCap OSO34 | C148: 1.558
A149: Department for Business, Energy & Industrial Strategy. (2022). UK Government GHG Conversion Factors for Company Reporting. https://assets.publishing.service.gov.uk/government/uploads/system/uploads/attachment_data/file/1083855/ghg-conversion-factors-2022-full-set.xls | B149: Metalli, säilykepurkki | C149: 3.10064
A150: Department for Business, Energy & Industrial Strategy. (2022). UK Government GHG Conversion Factors for Company Reporting. https://assets.publishing.service.gov.uk/government/uploads/system/uploads/attachment_data/file/1083855/ghg-conversion-factors-2022-full-set.xls | B150: Metalli, säilykepurkki, kierrätetty | C150: 1.74064
A151: Aho, J., Ali-Raatikainen, A., Leino, K. & Heinonen, U. (2019). Screening carbon footprint for aluminium wine packaging: Final report: Gaia Consulting. https://www.alko.fi/INTERSHOP/static/WFS/Alko-OnlineShop-Site/-/Alko-OnlineShop/fi_FI/pdf_t/Muut%20pdf_t/Alko-Aluminium-bottle-CO2-calculation-Final-report.pdf | B151: Alumiinitölkki 0,75 l | C151: 6
A152: Aho, J., Ali-Raatikainen, A., Leino, K. & Heinonen, U. (2019). Screening carbon footprint for aluminium wine packaging: Final report: Gaia Consulting. https://www.alko.fi/INTERSHOP/static/WFS/Alko-OnlineShop-Site/-/Alko-OnlineShop/fi_FI/pdf_t/Muut%20pdf_t/Alko-Aluminium-bottle-CO2-calculation-Final-report.pdf | B152: Alumiinitölkki 0,75 l kierrätetty | C152: 2.625
A153: The international EPD system. (2021). Metal closures. | B153: Metallikansi | C153: 7.161857
A154: Uthayakumar, A. (2020). Life Cycle Assessment of Glass bottle. https://www.researchgate.net/profile/Aashwini-Uthayakumar/publication/344552941_Life_Cycle_Assessment_of_Glass_bottle/links/5f7fe990299bf1b53e18453f/Life-Cycle-Assessment-of-Glass-bottle.pdf | B154: Lasipurkki | C154: 0.85
A155: Deviatkin, I. & Horttanainen, M. (23.3.2020). Carbon footprint of an EUR-sized wooden and a plastic pallet. https://doi.org/10.1051/e3sconf/202015803001 | B155: EUR-lava (puinen) | C155: 0.01559633028
A156: Deviatkin, I. & Horttanainen, M. (23.3.2020). Carbon footprint of an EUR-sized wooden and a plastic pallet. https://doi.org/10.1051/e3sconf/202015803001 | B156: EUR-lava: (muovinen) | C156: 6
A157: Transbox Oy. (i.a.). Transbox Oy:n laatikkojärjestelmien ympäristövaikutukset. https://www.transbox.fi/files/6/Ymparistovaikutukset.pdf | B157: Transbox: Lihalaatikko | C157: 0.11 | D157: per käyttökerta
A158: Transbox Oy. (i.a.). Transbox Oy:n laatikkojärjestelmien ympäristövaikutukset. https://www.transbox.fi/files/6/Ymparistovaikutukset.pdf | B158: Transbox: Eineslaatikko | C158: 0.08
A159: Elopack. (2021). Dynamic Elopak Environmental Performance Tool. https://www.google.com/url?sa=t&rct=j&q=&esrc=s&source=web&cd=&ved=2ahUKEwiQ8rKvwr__AhVu_SoKHb1PDR8QFnoECAkQAQ&url=https%3A%2F%2Fsustainabilityreport2020.elopak.com%2Fwp-content%2Fuploads%2F2021%2F05%2FDEEP-Example-095120-Elocap-O-05.05.21.pdf&usg=AOvVaw2AFWlvHa02bhmZSpZRFOpO | B159: Elopak, Pure-pak 1 l, korkillinen | C159: 17.4 | D159: gCO2/purkki
A160: CarbonCloud. (26.8.2022). Latex natural. https://apps.carboncloud.com/climatehub/product-reports/id/13365715946 | B160: Lateksi, luonnonkumi | C160: 0.13 | D160: kg CO2-ekv./kg
A161: CarbonCloud. (9.2.2023). Aluminium foil, virgin, Europe. https://apps.carboncloud.com/climatehub/product-reports/id/483212199464 | B161: Alumiinifolio, neitseellinen | C161: 6.3 | D161: kg CO2-ekv.kg
A162: CarbonCloud. (26.8.2022). Cork stopper. https://apps.carboncloud.com/climatehub/product-reports/id/82496524260 | B162: Korkki, pulloon, korkkia | C162: 0.25 | D162: kg CO2-ekv./kg
A163: CarbonCloud. (26.8.2022). Labeling paper. https://apps.carboncloud.com/climatehub/product-reports/id/143121876972 | B163: Etikettipaperi | C163: 1.6 | D163: kg CO2-ekv./kg
A164: CarbonCloud. (i.a.). Disposable wooden utensils. https://apps.carboncloud.com/climatehub/product-reports/id/453379154063 | B164: Aterimet, kertakäyttöiset, puiset | C164: 0.19 | D164: kg CO2-ekv./kg
A165: CarbonCloud. (i.a.). Plastic film, fossil based, EU. https://apps.carboncloud.com/climatehub/product-reports/id/143729409515 | B165: Muovikalvo | C165: 5.6 | D165: kg CO2-ekv./kg
A166: Laasonen, K. (2023). Yrityksen pakkausten hiilijalanjälki [AMK-opinnäytetyö, Turun ammattikorkeakoulu]. Theseus. https://urn.fi/URN:NBN:fi:amk-202302172525 | B166: Aaltopahvi | C166: 0.83
A167: Laasonen, K. (2023). Yrityksen pakkausten hiilijalanjälki [AMK-opinnäytetyö, Turun ammattikorkeakoulu]. Theseus. https://urn.fi/URN:NBN:fi:amk-202302172525 | B167: Kuplamuovi | C167: 3.58
A168: Laasonen, K. (2023). Yrityksen pakkausten hiilijalanjälki [AMK-opinnäytetyö, Turun ammattikorkeakoulu]. Theseus. https://urn.fi/URN:NBN:fi:amk-202302172525 | B168: Puu | C168: 0.31
A171: Lähteet: | B171: Jätelajikkeet | C171: kg CO2-ekv./kg
A172: Dahlbo, H., Myllymaa, T., Manninen, K., Korhonen, M.-R. (19.12.2011). HSY:n alueella tuotettujen, käsiteltyjen ja hyödynnettyjen jätelajien khk-päästökertoimet Laskelmien taustatietoa. Julia 2020 -hanke. https://assets.lt.fi/documents/Julia-2030-hankkeen-taustadokumentti.pdf | B172: Biojäte | C172: 0.06
A173: Dahlbo, H., Myllymaa, T., Manninen, K., Korhonen, M.-R. (19.12.2011). HSY:n alueella tuotettujen, käsiteltyjen ja hyödynnettyjen jätelajien khk-päästökertoimet Laskelmien taustatietoa. Julia 2020 -hanke. https://assets.lt.fi/documents/Julia-2030-hankkeen-taustadokumentti.pdf | B173: Energiajäte | C173: 0.53
A174: Dahlbo, H., Myllymaa, T., Manninen, K., Korhonen, M.-R. (19.12.2011). HSY:n alueella tuotettujen, käsiteltyjen ja hyödynnettyjen jätelajien khk-päästökertoimet Laskelmien taustatietoa. Julia 2020 -hanke. https://assets.lt.fi/documents/Julia-2030-hankkeen-taustadokumentti.pdf | B174: Kartonki ja pahvi | C174: 0.07
A175: Dahlbo, H., Myllymaa, T., Manninen, K., Korhonen, M.-R. (19.12.2011). HSY:n alueella tuotettujen, käsiteltyjen ja hyödynnettyjen jätelajien khk-päästökertoimet Laskelmien taustatietoa. Julia 2020 -hanke. https://assets.lt.fi/documents/Julia-2030-hankkeen-taustadokumentti.pdf | B175: Lasi | C175: 0.57
A176: Dahlbo, H., Myllymaa, T., Manninen, K., Korhonen, M.-R. (19.12.2011). HSY:n alueella tuotettujen, käsiteltyjen ja hyödynnettyjen jätelajien khk-päästökertoimet Laskelmien taustatietoa. Julia 2020 -hanke. https://assets.lt.fi/documents/Julia-2030-hankkeen-taustadokumentti.pdf | B176: Metalli | C176: 0.13
A177: Dahlbo, H., Myllymaa, T., Manninen, K., Korhonen, M.-R. (19.12.2011). HSY:n alueella tuotettujen, käsiteltyjen ja hyödynnettyjen jätelajien khk-päästökertoimet Laskelmien taustatietoa. Julia 2020 -hanke. https://assets.lt.fi/documents/Julia-2030-hankkeen-taustadokumentti.pdf | B177: Muovi | C177: 0.07
A178: Dahlbo, H., Myllymaa, T., Manninen, K., Korhonen, M.-R. (19.12.2011). HSY:n alueella tuotettujen, käsiteltyjen ja hyödynnettyjen jätelajien khk-päästökertoimet Laskelmien taustatietoa. Julia 2020 -hanke. https://assets.lt.fi/documents/Julia-2030-hankkeen-taustadokumentti.pdf | B178: Paperi | C178: 1.05
A179: Dahlbo, H., Myllymaa, T., Manninen, K., Korhonen, M.-R. (19.12.2011). HSY:n alueella tuotettujen, käsiteltyjen ja hyödynnettyjen jätelajien khk-päästökertoimet Laskelmien taustatietoa. Julia 2020 -hanke. https://assets.lt.fi/documents/Julia-2030-hankkeen-taustadokumentti.pdf | B179: Sekajäte kaatopaikka | C179: 0.43
A180: Dahlbo, H., Myllymaa, T., Manninen, K., Korhonen, M.-R. (19.12.2011). HSY:n alueella tuotettujen, käsiteltyjen ja hyödynnettyjen jätelajien khk-päästökertoimet Laskelmien taustatietoa. Julia 2020 -hanke. https://assets.lt.fi/documents/Julia-2030-hankkeen-taustadokumentti.pdf | B180: Sekajäte poltto | C180: 0.41
A181: Dahlbo, H., Myllymaa, T., Manninen, K., Korhonen, M.-R. (19.12.2011). HSY:n alueella tuotettujen, käsiteltyjen ja hyödynnettyjen jätelajien khk-päästökertoimet Laskelmien taustatietoa. Julia 2020 -hanke. https://assets.lt.fi/documents/Julia-2030-hankkeen-taustadokumentti.pdf | B181: Sähkö- ja elektroniikkaromu SER | C181: 0.06
A182: Dahlbo, H., Myllymaa, T., Manninen, K., Korhonen, M.-R. (19.12.2011). HSY:n alueella tuotettujen, käsiteltyjen ja hyödynnettyjen jätelajien khk-päästökertoimet Laskelmien taustatietoa. Julia 2020 -hanke. https://assets.lt.fi/documents/Julia-2030-hankkeen-taustadokumentti.pdf | B182: Vaarallinen jäte | C182: 1.41
A183: OpenCO2net. (2019). Vesi, jäteveden puhdistus. https://www.openco2.net/fi/paastokertoimet/tuote/vesi-jateveden-puhdistus/1724 | B183: Jätevesi | C183: 0.00065
A185: Pesuaineet
A187: Lähde | B187: Pesuaineet | C187: Päästökerroin | D187: Yksikkö
A188: Euroopan komission delegoitu asetus. (10.2.2023). Euroopan parlamentin ja neuvoston direktiivin (EU) 2018/2001 täydentämisestä vahvistamalla kierrätetyillä hiilipitoisilla polttoaineilla saavutettavia kasvihuonekaasupäästöjen vähennyksiä koskeva vähimmäiskynnys ja täsmentämällä menetelmä muuta kuin biologista alkuperää olevilla uusiutuvilla nestemäisillä ja kaasumaisilla liikenteen polttoaineilla ja kierrätetyillä hiilipitoisilla polttoaineilla saavutettavien kasvihuonekaasupäästöjen vähennysten määrittämiseksi. https://eur-lex.europa.eu/legal-content/FI/TXT/?uri=PI_COM:C(2023)1086 | B188: Ammoniakki | C188: 2.3513 | D188: kg CO2-ekv./kg
A189: Ècosi. (26.7.2022). Dichiarazione ambientale di prodotto (EPD) di prodotti per la pulizia e l’igiene di. https://api.environdec.com/api/v1/EPDLibrary/Files/75c1a1ee-6fc1-4c8b-ab39-08da599e304a/Data. | B189: Astianpesuaine, SPOON | C189: =AVERAGE(0.86,0.88) -> 0.87 | D189: kg CO2-ekv./kg
A190: Ècosi. (26.7.2022). Dichiarazione ambientale di prodotto (EPD) di prodotti per la pulizia e l’igiene di. https://api.environdec.com/api/v1/EPDLibrary/Files/75c1a1ee-6fc1-4c8b-ab39-08da599e304a/Data. | B190: Astianpesukoneen huuhteluaine, KLAR | C190: =AVERAGE(1.3) -> 1.3 | D190: kg CO2-ekv./kg
A191: Ècosi. (26.7.2022). Dichiarazione ambientale di prodotto (EPD) di prodotti per la pulizia e l’igiene di. https://api.environdec.com/api/v1/EPDLibrary/Files/75c1a1ee-6fc1-4c8b-ab39-08da599e304a/Data. | B191: Elintarvikkeiden desifiointiaine, OXYGENA | C191: =AVERAGE(0.9,0.9,0.89) -> 0.8966666667 | D191: kg CO2-ekv./kg
A192: Ècosi. (26.7.2022). Dichiarazione ambientale di prodotto (EPD) di prodotti per la pulizia e l’igiene di. https://api.environdec.com/api/v1/EPDLibrary/Files/75c1a1ee-6fc1-4c8b-ab39-08da599e304a/Data. | B192: Epätavallisten pintojen puhdistus, CHERODAL | C192: 0.73 | D192: kg CO2-ekv./kg
A193: Euroopan komission delegoitu asetus. (10.2.2023). Euroopan parlamentin ja neuvoston direktiivin (EU) 2018/2001 täydentämisestä vahvistamalla kierrätetyillä hiilipitoisilla polttoaineilla saavutettavia kasvihuonekaasupäästöjen vähennyksiä koskeva vähimmäiskynnys ja täsmentämällä menetelmä muuta kuin biologista alkuperää olevilla uusiutuvilla nestemäisillä ja kaasumaisilla liikenteen polttoaineilla ja kierrätetyillä hiilipitoisilla polttoaineilla saavutettavien kasvihuonekaasupäästöjen vähennysten määrittämiseksi. https://eur-lex.europa.eu/legal-content/FI/TXT/?uri=PI_COM:C(2023)1086 | B193: Fosforihappo, H3PO4 | C193: 3.1247 | D193: kg CO2-ekv./kg
A194: Ècosi. (26.7.2022). Dichiarazione ambientale di prodotto (EPD) di prodotti per la pulizia e l’igiene di. https://api.environdec.com/api/v1/EPDLibrary/Files/75c1a1ee-6fc1-4c8b-ab39-08da599e304a/Data. | B194: Huuhteluaine, OPERA | C194: =AVERAGE(0.82,0.81,0.81) -> 0.8133333333 | D194: kg CO2-ekv./kg
A195: Ècosi. (26.7.2022). Dichiarazione ambientale di prodotto (EPD) di prodotti per la pulizia e l’igiene di. https://api.environdec.com/api/v1/EPDLibrary/Files/75c1a1ee-6fc1-4c8b-ab39-08da599e304a/Data. | B195: Juomaveden desifiointi ja leikkaussalin sumutus, PEROX | C195: 1.4 | D195: kg CO2-ekv./kg
A196: Euroopan komission delegoitu asetus. (10.2.2023). Euroopan parlamentin ja neuvoston direktiivin (EU) 2018/2001 täydentämisestä vahvistamalla kierrätetyillä hiilipitoisilla polttoaineilla saavutettavia kasvihuonekaasupäästöjen vähennyksiä koskeva vähimmäiskynnys ja täsmentämällä menetelmä muuta kuin biologista alkuperää olevilla uusiutuvilla nestemäisillä ja kaasumaisilla liikenteen polttoaineilla ja kierrätetyillä hiilipitoisilla polttoaineilla saavutettavien kasvihuonekaasupäästöjen vähennysten määrittämiseksi. https://eur-lex.europa.eu/legal-content/FI/TXT/?uri=PI_COM:C(2023)1086 | B196: Kaliumhydroksidi, KOH | C196: 0.4191 | D196: kg CO2-ekv./kg
A197: Ècosi. (26.7.2022). Dichiarazione ambientale di prodotto (EPD) di prodotti per la pulizia e l’igiene di. https://api.environdec.com/api/v1/EPDLibrary/Files/75c1a1ee-6fc1-4c8b-ab39-08da599e304a/Data. | B197: Kalkinpoistoaine kylpyhuoneisiin ja saniteettitiloihin, ULTRA RED (Ecolabel) | C197: =AVERAGE(1.7,1.6,1.63,1.6,1.6,2) -> 1.688333333 | D197: kg CO2-ekv./kg
A198: Ècosi. (26.7.2022). Dichiarazione ambientale di prodotto (EPD) di prodotti per la pulizia e l’igiene di. https://api.environdec.com/api/v1/EPDLibrary/Files/75c1a1ee-6fc1-4c8b-ab39-08da599e304a/Data. | B198: Kalkinpoistoaine, ALOX | C198: =AVERAGE(0.48,0.49,0.49,0.43) -> 0.4725 | D198: kg CO2-ekv./kg
A199: Ècosi. (26.7.2022). Dichiarazione ambientale di prodotto (EPD) di prodotti per la pulizia e l’igiene di. https://api.environdec.com/api/v1/EPDLibrary/Files/75c1a1ee-6fc1-4c8b-ab39-08da599e304a/Data. | B199: Kalkinpoistoaine, APE | C199: =AVERAGE(0.35,0.32,0.31) -> 0.3266666667 | D199: kg CO2-ekv./kg
A200: Ècosi. (26.7.2022). Dichiarazione ambientale di prodotto (EPD) di prodotti per la pulizia e l’igiene di. https://api.environdec.com/api/v1/EPDLibrary/Files/75c1a1ee-6fc1-4c8b-ab39-08da599e304a/Data. | B200: Kalkinpoistoaine, TULIP | C200: =AVERAGE(0.66,0.68,0.68) -> 0.6733333333 | D200: kg CO2-ekv./kg
A201: Euroopan komission delegoitu asetus. (10.2.2023). Euroopan parlamentin ja neuvoston direktiivin (EU) 2018/2001 täydentämisestä vahvistamalla kierrätetyillä hiilipitoisilla polttoaineilla saavutettavia kasvihuonekaasupäästöjen vähennyksiä koskeva vähimmäiskynnys ja täsmentämällä menetelmä muuta kuin biologista alkuperää olevilla uusiutuvilla nestemäisillä ja kaasumaisilla liikenteen polttoaineilla ja kierrätetyillä hiilipitoisilla polttoaineilla saavutettavien kasvihuonekaasupäästöjen vähennysten määrittämiseksi. https://eur-lex.europa.eu/legal-content/FI/TXT/?uri=PI_COM:C(2023)1086 | B201: Kalsiumkloridi, CaCl2 | C201: 0.0388 | D201: kg CO2-ekv./kg
A202: Euroopan komission delegoitu asetus. (10.2.2023). Euroopan parlamentin ja neuvoston direktiivin (EU) 2018/2001 täydentämisestä vahvistamalla kierrätetyillä hiilipitoisilla polttoaineilla saavutettavia kasvihuonekaasupäästöjen vähennyksiä koskeva vähimmäiskynnys ja täsmentämällä menetelmä muuta kuin biologista alkuperää olevilla uusiutuvilla nestemäisillä ja kaasumaisilla liikenteen polttoaineilla ja kierrätetyillä hiilipitoisilla polttoaineilla saavutettavien kasvihuonekaasupäästöjen vähennysten määrittämiseksi. https://eur-lex.europa.eu/legal-content/FI/TXT/?uri=PI_COM:C(2023)1086 | B202: Kalsiumoksidi, kalkki, CaO, puhdas prosesseja varten | C202: 1.1932 | D202: kg CO2-ekv./kg
A203: Euroopan komission delegoitu asetus. (10.2.2023). Euroopan parlamentin ja neuvoston direktiivin (EU) 2018/2001 täydentämisestä vahvistamalla kierrätetyillä hiilipitoisilla polttoaineilla saavutettavia kasvihuonekaasupäästöjen vähennyksiä koskeva vähimmäiskynnys ja täsmentämällä menetelmä muuta kuin biologista alkuperää olevilla uusiutuvilla nestemäisillä ja kaasumaisilla liikenteen polttoaineilla ja kierrätetyillä hiilipitoisilla polttoaineilla saavutettavien kasvihuonekaasupäästöjen vähennysten määrittämiseksi. https://eur-lex.europa.eu/legal-content/FI/TXT/?uri=PI_COM:C(2023)1086 | B203: Kloorivetyhappo, HCl | C203: 1.0611 | D203: kg CO2-ekv./kg
A204: Ècosi. (26.7.2022). Dichiarazione ambientale di prodotto (EPD) di prodotti per la pulizia e l’igiene di. https://api.environdec.com/api/v1/EPDLibrary/Files/75c1a1ee-6fc1-4c8b-ab39-08da599e304a/Data. | B204: Konetiskiaine, RIVA | C204: 1.3 | D204: kg CO2-ekv./kg
A205: Ècosi. (26.7.2022). Dichiarazione ambientale di prodotto (EPD) di prodotti per la pulizia e l’igiene di. https://api.environdec.com/api/v1/EPDLibrary/Files/75c1a1ee-6fc1-4c8b-ab39-08da599e304a/Data. | B205: Likaiset kankaat, ALKES (Ecolabel) | C205: =0.11 -> 0.11 | D205: kg CO2-ekv./kg
A206: Euroopan komission delegoitu asetus. (10.2.2023). Euroopan parlamentin ja neuvoston direktiivin (EU) 2018/2001 täydentämisestä vahvistamalla kierrätetyillä hiilipitoisilla polttoaineilla saavutettavia kasvihuonekaasupäästöjen vähennyksiä koskeva vähimmäiskynnys ja täsmentämällä menetelmä muuta kuin biologista alkuperää olevilla uusiutuvilla nestemäisillä ja kaasumaisilla liikenteen polttoaineilla ja kierrätetyillä hiilipitoisilla polttoaineilla saavutettavien kasvihuonekaasupäästöjen vähennysten määrittämiseksi. https://eur-lex.europa.eu/legal-content/FI/TXT/?uri=PI_COM:C(2023)1086 | B206: Magnesiumsulfaatti, MgSO4 | C206: 0.1918 | D206: kg CO2-ekv./kg
A207: Euroopan komission delegoitu asetus. (10.2.2023). Euroopan parlamentin ja neuvoston direktiivin (EU) 2018/2001 täydentämisestä vahvistamalla kierrätetyillä hiilipitoisilla polttoaineilla saavutettavia kasvihuonekaasupäästöjen vähennyksiä koskeva vähimmäiskynnys ja täsmentämällä menetelmä muuta kuin biologista alkuperää olevilla uusiutuvilla nestemäisillä ja kaasumaisilla liikenteen polttoaineilla ja kierrätetyillä hiilipitoisilla polttoaineilla saavutettavien kasvihuonekaasupäästöjen vähennysten määrittämiseksi. https://eur-lex.europa.eu/legal-content/FI/TXT/?uri=PI_COM:C(2023)1086 | B207: Natriumhydroksidi, lipeä, NaOH | C207: 0.5297 | D207: kg CO2-ekv./kg
A208: Euroopan komission delegoitu asetus. (10.2.2023). Euroopan parlamentin ja neuvoston direktiivin (EU) 2018/2001 täydentämisestä vahvistamalla kierrätetyillä hiilipitoisilla polttoaineilla saavutettavia kasvihuonekaasupäästöjen vähennyksiä koskeva vähimmäiskynnys ja täsmentämällä menetelmä muuta kuin biologista alkuperää olevilla uusiutuvilla nestemäisillä ja kaasumaisilla liikenteen polttoaineilla ja kierrätetyillä hiilipitoisilla polttoaineilla saavutettavien kasvihuonekaasupäästöjen vähennysten määrittämiseksi. https://eur-lex.europa.eu/legal-content/FI/TXT/?uri=PI_COM:C(2023)1086 | B208: Natriumkarbonaatti, Na2CO3 | C208: 1.2451 | D208: kg CO2-ekv./kg
A209: Euroopan komission delegoitu asetus. (10.2.2023). Euroopan parlamentin ja neuvoston direktiivin (EU) 2018/2001 täydentämisestä vahvistamalla kierrätetyillä hiilipitoisilla polttoaineilla saavutettavia kasvihuonekaasupäästöjen vähennyksiä koskeva vähimmäiskynnys ja täsmentämällä menetelmä muuta kuin biologista alkuperää olevilla uusiutuvilla nestemäisillä ja kaasumaisilla liikenteen polttoaineilla ja kierrätetyillä hiilipitoisilla polttoaineilla saavutettavien kasvihuonekaasupäästöjen vähennysten määrittämiseksi. https://eur-lex.europa.eu/legal-content/FI/TXT/?uri=PI_COM:C(2023)1086 | B209: Natriumkloridi, NaCl | C209: 0.0133 | D209: kg CO2-ekv./kg
A210: Euroopan komission delegoitu asetus. (10.2.2023). Euroopan parlamentin ja neuvoston direktiivin (EU) 2018/2001 täydentämisestä vahvistamalla kierrätetyillä hiilipitoisilla polttoaineilla saavutettavia kasvihuonekaasupäästöjen vähennyksiä koskeva vähimmäiskynnys ja täsmentämällä menetelmä muuta kuin biologista alkuperää olevilla uusiutuvilla nestemäisillä ja kaasumaisilla liikenteen polttoaineilla ja kierrätetyillä hiilipitoisilla polttoaineilla saavutettavien kasvihuonekaasupäästöjen vähennysten määrittämiseksi. https://eur-lex.europa.eu/legal-content/FI/TXT/?uri=PI_COM:C(2023)1086 | B210: Natriummetoksidi, Na(CH3,O) | C210: 2.4255 | D210: kg CO2-ekv./kg
A211: Ècosi. (26.7.2022). Dichiarazione ambientale di prodotto (EPD) di prodotti per la pulizia e l’igiene di. https://api.environdec.com/api/v1/EPDLibrary/Files/75c1a1ee-6fc1-4c8b-ab39-08da599e304a/Data. | B211: Pesuaine astioille ja ikkuinoille, TORNET | C211: =AVERAGE(0.65,0.62) -> 0.635 | D211: kg CO2-ekv./kg
... 1027 more rows

Sheet Dataa
A1: Tälle sivulle kerätään laskentamallin toimivuuden kannalta oleellisia oletusarvoja, taulukoita, listoja, yms, jotka eivät ole käyttäjän kannalta oleellisia.
A3: Tuotteen elinkaaren aikana syntyi <SivuvirtojenMäärä> kappaletta erilaisia sivuvirtoja, joita ei voitu erottaa omiksi alaprosesseikseen tai sisällyttää tuotejärjestelmään järjestelmän rajoja laajentamalla. Sivutuotteille on allokoitu päästöt kokonaispäästöistä massojen suhteessa. Taulukossa 1 on esitetty sivutuotteiden tiedot. | B3: Sivuvirtojen kohdentamiseen on käytetty kohdentamismenetelmänä <Allokointimenetelmä> | C3: Taulukoissa 1, 2 ja 3 | D3: Taulukko 1. | E3: Taulukko 2. | F3: Taulukko 3. | G3: Taulukko 4. | H3: Taulukossa 4 | I3: massaperusteista allokointia. Tämä tarkoittaa sitä, että päästöt on jaettu päätuotteen ja sivutuotteiden kesken massojen suhteessa. | J3: talousperusteista allokointia. Tämä tarkoittaa sitä, että päästöt on jaettu päätuotteen ja sivutuotteiden kesken niistä saatavan taloudellisen hyödyn suhteessa. | K3: =Yhteenveto!BioOsuus*100 -> 0 | L3: Vastaavasti kuvissa 4 ja 5 on esitetty biogeenisten päästöjen osuus tuotteen hiilijalanjäljestä. | M3: IKE-Laskentamenetelmällä tuotteen hiilijalanjäljenlaskenta keskittyy tuotteen elinkaaren vaiheisiin raaka-aineiden tuotannosta valmiin tuotteen kuljetukseen, eli niin sanotusti "kehdosta-portille". Tuotteen elinkaaren vaiheista keskitytään raaka-aineisiin, pakkausmateriaaleihin, jätteisiin, energiankäyttöön ja logistiikkaan. Raaka-aineissa ja pakkausmateriaaleissa huomioidaan niiden valmistuksen aikaiset päästöt. Jätejakeiden päästöihin sisällytetään jätteiden keräys, kuljetus ja käsittely. Energian käytön päästöihin sisältyy tuotteen valmistukseen käytettyjen laitteiden ja pesuvesien lämmitykseen kuluvan energian päästöt. Logistiikassa on otettu huomioon raaka-aineiden, pakkausmateriaalien ja valmiiden tuotteiden kuljetukset sekä varastointiin käytettävän energian ja kylmäainekaasujen päästöt. | N3: Käytetyt lähtötiedot tulevat luotettavista ja varmennetuista lähteistä. Lähtötiedoissa pyritään käyttämään ensisijaisesti primaaridataa. Sekundaaridatan ja oletusten käytöstä ilmaistaan selkeästi raportoinnissa. | O3: Laskennan ulkopuolelle on rajattu… Laskennassa on oletettu, että… | P3: Laskennassa käytettävät tiedot on kerätty… (mistä, milloin, miten, kuka…) | Q3: Raaka-aineiden laskennassa on epävarmuutta, koska… Talousperusteiseen allokointiin päädyttiin, koska…
A5: Yksikkömuuntimen pudotusvalikon listat:
A6: Päästökertoimet: | B6: Energia: | C6: Aika: | E6: Varastojen tyypit: | I6: Muistiinpanot:
A7: kg CO2-ekv / kg | B7: Wh | C7: Sekunti | E7: Lämmin varasto | I7: IKE-Laskentamenetelmä
A8: kg CO2-ekv / t | B8: kWh | C8: Minuutti | E8: Jäähdytetty varasto | I8: Työkalut
A9: g CO2-ekv / kg | B9: MWh | C9: Tunti | E9: Lämmittämätön varasto | I9: Raaka-aineet
A10: g CO2-ekv / t | B10: J | C10: Vuorokausi | I10: Pakkausmateriaalit
A11: t CO2-ekv / t | B11: kJ | C11: Kuukausi (30vrk) | I11: Jätteet ja sivuvirrat
A12: g CO2-ekv / 100 g | B12: MJ | C12: Vuosi | I12: Energia
A13: kg CH4 (fossiiliperäinen) / kg | B13: TJ | I13: Logistiikka
A14: kg CH4 (ei-fossiiliperäinen) / kg | I14: Yhteenveto
A15: kg N2O / kg | I15: Tasetarkastelu
I16: Päästökertoimet
A17: Kategoria | B17: Alikategoria | C17: Lukumäärä | D17: Massa | E17: Päästöt | F17: Osuus kokonaispäästöistä | G17: Bio pääästöt
A18: Raaka-aineet: | C18: =COUNTA('Raaka-aineet'!A4:A4) -> 0 | D18: ='Raaka-aineet'!B5 -> 0 | E18: ='Raaka-aineet'!E5 -> 0 | F18: =IFERROR(E18/Yhteenveto!KaikkiPaastot,0) -> 0
A19: Pakkausmateriaalit | C19: =COUNTA(Pakkausmateriaalit!A4:A4) -> 0 | D19: =Pakkausmateriaalit!E5 -> 0 | E19: =Pakkausmateriaalit!G5 -> 0 | F19: =IFERROR(E19/Yhteenveto!KaikkiPaastot,0) -> 0
A20: Jätteet ja sivuvirrat | F20: =IFERROR(E20/Yhteenveto!KaikkiPaastot,0) -> 0
B21: Raaka-ainetuotanto | C21: =COUNTIF('Jätteet ja sivuvirrat'!B4:B4,"=Raaka-ainetuotanto") -> 0 | D21: =SUMIF('Jätteet ja sivuvirrat'!B4:B4,"=Raaka-ainetuotanto",'Jätteet ja sivuvirrat'!D4:D4) -> 0 | E21: =SUMIF('Jätteet ja sivuvirrat'!B4:B4,"=Raaka-ainetuotanto",'Jätteet ja sivuvirrat'!F4:F4) -> 0 | F21: =IFERROR(E21/Yhteenveto!KaikkiPaastot,0) -> 0
B22: Prosessointivaihe | C22: =COUNTIF('Jätteet ja sivuvirrat'!B4:B4,"=Prosessointivaihe") -> 0 | D22: =SUMIF('Jätteet ja sivuvirrat'!B4:B4,"=Prosessointivaihe",'Jätteet ja sivuvirrat'!D4:D4) -> 0 | E22: =SUMIF('Jätteet ja sivuvirrat'!B4:B4,"=Prosessointivaihe",'Jätteet ja sivuvirrat'!F4:F4) -> 0 | F22: =IFERROR(E22/Yhteenveto!KaikkiPaastot,0) -> 0
B23: Jäte | C23: =COUNTIF('Jätteet ja sivuvirrat'!C4:C4,"Jäte") -> 0 | D23: =SUMIF('Jätteet ja sivuvirrat'!C4:C4,"=Jäte",'Jätteet ja sivuvirrat'!D4:D4) -> 0 | E23: =SUMIF('Jätteet ja sivuvirrat'!C4:C4,"=Jäte",'Jätteet ja sivuvirrat'!F4:F4) -> 0 | F23: =IFERROR(E23/Yhteenveto!KaikkiPaastot,0) -> 0
B24: Sivuvirta | C24: =COUNTIF('Jätteet ja sivuvirrat'!C4:C4,"=Sivuvirta") -> 0 | D24: =SUMIF('Jätteet ja sivuvirrat'!C4:C4,"=Sivuvirta",'Jätteet ja sivuvirrat'!D4:D4) -> 0 | E24: =SUMIF('Jätteet ja sivuvirrat'!C4:C4,"=Sivuvirta",'Jätteet ja sivuvirrat'!F4:F4) -> 0 | F24: =IFERROR(E24/Yhteenveto!KaikkiPaastot,0) -> 0
B25: Yhteensä | C25: =SUM(C21:C22) -> 0 | D25: =SUM(D21:D22) -> 0 | E25: =SUM(E21:E22) -> 0 | F25: =IFERROR(E25/Yhteenveto!KaikkiPaastot,0) -> 0
A26: Sähkölaitteet | C26: =COUNTA(Energia!A8:A8) -> 0 | E26: =Energia!G9+Energia!G21 -> 0 | F26: =IFERROR(E26/Yhteenveto!KaikkiPaastot,0) -> 0
A27: Muut laitteet | C27: =COUNTA(Energia!A12:A12) -> 0 | E27: =Energia!H13 -> 0 | F27: =IFERROR(E27/Yhteenveto!KaikkiPaastot,0) -> 0
A28: Höyry | C28: =COUNTA(Energia!A16:A16) -> 0 | D28: =Energia!B17 -> 0 | E28: =Energia!G17 -> 0 | F28: =IFERROR(E28/Yhteenveto!KaikkiPaastot,0) -> 0
A29: Pesuvesien lämmitys | E29: =Energia!PesuvesienLammitysPaastot -> 0 | F29: =IFERROR(E29/Yhteenveto!KaikkiPaastot,0) -> 0
A30: Kuljetukset | F30: =IFERROR(E30/Yhteenveto!KaikkiPaastot,0) -> 0
B31: Osamatka 1 | C31: =COUNTIF(Logistiikka!B9:B9,"Osamatka 1") -> 0 | E31: =IF(Logistiikka!B4<>"",Logistiikka!B4,SUMIF(Logistiikka!B9:B9,"Osamatka 1",Logistiikka!K9:K9)) -> 0 | F31: =IFERROR(E31/Yhteenveto!KaikkiPaastot,0) -> 0 | G31: =IF(Logistiikka!B4<>"",0,SUMIF(Logistiikka!B9:B9,"Osamatka 1",Logistiikka!N9:N9)) -> 0
B32: Osamatka 2 | C32: =COUNTIF(Logistiikka!B9:B9,"Osamatka 2") -> 0 | E32: =IF(Logistiikka!B5<>"",Logistiikka!B5,SUMIF(Logistiikka!B9:B9,"Osamatka 2",Logistiikka!K9:K9)) -> 0 | F32: =IFERROR(E32/Yhteenveto!KaikkiPaastot,0) -> 0 | G32: =IF(Logistiikka!B5<>"",Logistiikka!B5,SUMIF(Logistiikka!B9:B9,"Osamatka 2",Logistiikka!N9:N9)) -> 0
B33: Osamatka 3 | C33: =COUNTIF(Logistiikka!B9:B9,"Osamatka 3") -> 0 | E33: =IF(Logistiikka!B6<>"",Logistiikka!B6,SUMIF(Logistiikka!B9:B9,"Osamatka 3",Logistiikka!K9:K9)) -> 0 | F33: =IFERROR(E33/Yhteenveto!KaikkiPaastot,0) -> 0 | G33: =IF(Logistiikka!B6<>"",Logistiikka!B6,SUMIF(Logistiikka!B9:B9,"Osamatka 3",Logistiikka!N9:N9)) -> 0
B34: Yhteensä | C34: =SUM(C31:C33) -> 0 | E34: =SUM(E31:E33) -> 0 | F34: =IFERROR(E34/Yhteenveto!KaikkiPaastot,0) -> 0 | G34: =SUM(G31:G33) -> 0
A35: Varastointi | F35: =IFERROR(E35/Yhteenveto!KaikkiPaastot,0) -> 0
B36: Raaka-aineiden varasto | C36: =COUNTIF(Logistiikka!B13:B13,"=Raaka-aineiden varasto") -> 0 | F36: =IFERROR(E36/Yhteenveto!KaikkiPaastot,0) -> 0
B37: Pakkausmateriaalien varasto | C37: =COUNTIF(Logistiikka!B13:B13,"=Pakkausmateriaalien varasto") -> 0 | F37: =IFERROR(E37/Yhteenveto!KaikkiPaastot,0) -> 0
B38: Tuotteiden varasto | C38: =COUNTIF(Logistiikka!B13:B13,"=Tuotteiden varasto") -> 0 | F38: =IFERROR(E38/Yhteenveto!KaikkiPaastot,0) -> 0
B39: Yhteensä | C39: =SUM(C36:C38) -> 0 | E39: =Logistiikka!VarastointiPaastotYhteensa -> 0 | F39: =IFERROR(E39/Yhteenveto!KaikkiPaastot,0) -> 0
A40: Kylmäainekaasut | F40: =IFERROR(E40/Yhteenveto!KaikkiPaastot,0) -> 0
B41: Raaka-aineiden varasto | C41: =COUNTIF(Logistiikka!B17:B17,"=Raaka-aineiden varasto") -> 0 | F41: =IFERROR(E41/Yhteenveto!KaikkiPaastot,0) -> 0
B42: Pakkausmateriaalien varasto | C42: =COUNTIF(Logistiikka!B17:B17,"=Pakkausmateriaalien varasto") -> 0 | F42: =IFERROR(E42/Yhteenveto!KaikkiPaastot,0) -> 0
B43: Tuotteiden varasto | C43: =COUNTIF(Logistiikka!B17:B17,"=Tuotteiden varasto") -> 0 | F43: =IFERROR(E43/Yhteenveto!KaikkiPaastot,0) -> 0
B44: Yhteensä | C44: =SUM(C41:C43) -> 0 | E44: =Logistiikka!KylmaAineetPaastotYhteensa -> 0 | F44: =IFERROR(E44/Yhteenveto!KaikkiPaastot,0) -> 0
A45: Pesuaineet | C45: =COUNTA('Jätteet ja sivuvirrat'!A8:A8) -> 0 | E45: ='Jätteet ja sivuvirrat'!E9 -> 0 | F45: =IFERROR(E45/Yhteenveto!KaikkiPaastot,0) -> 0
A47: Perusvirrat | F47: Päästökategoriat | J47: Elinkaarenvaiheet
A48: Nimi | B48: Määrä | C48: Päästöt | D48: Päästöosuus | F48: Nimi | G48: Päästöt | H48: Päästöosuus | J48: Nimi | K48: Päästöt | L48: Päästöosuus
F49: Energia | G49: =Yhteenveto!B9 -> 0 | H49: =Yhteenveto!D9 -> 0 | J49: Valmistus | K49: =JatProsPaastot+EnerMaara+MuutLaitteetPaastot+E27+E45 -> 0 | L49: =EnerPaastojenOsuus+MuidenLaitPaastotOsuus+JatProsPaastotOsuus+F27+F45 -> 0
F50: Raaka-aineet | G50: =Yhteenveto!B6 -> 0 | H50: =Yhteenveto!D6 -> 0 | J50: Raaka-aineiden hankinta ja esikäsittely | K50: =RaaPaastot+JatRaaPaastot+PakkaustenPaastot -> 0 | L50: =RaaOsuusPaastoista+PakOsuusPaastoista+JatRaaPaastotOsuus -> 0
F51: Pakkausmateriaalit | G51: =Yhteenveto!B7 -> 0 | H51: =Yhteenveto!D7 -> 0 | J51: Jakelu | K51: =KuljPaastotYht+VarPaastotYht+KylPaastotYht -> 0 | L51: =KuljOsuudetPaastoista+VarOsuudetPaastoista+KylOsuudetPaastoista -> 0
F52: Jätteet ja sivuvirrat | G52: =Yhteenveto!B8 -> 0 | H52: =Yhteenveto!D8 -> 0 | J52: Käyttö | K52: 0 | L52: 0
F53: Logistiikka | G53: =Yhteenveto!B10 -> 0 | H53: =Yhteenveto!D10 -> 0 | J53: Käytöstä poisto | K53: 0 | L53: 0
H54: =SUM(H49:H53) -> 0 | L54: =SUM(L49:L53) -> 0
